Workbook

Sheet 部门收支总表
A1: 2020年部门预算收支总表
A2: 填报单位：临湘市公安局汇总 | F2: 单位：元
A3: 收入 | C3: 支出(经济分类） | E3: 支出（功能科目）
A4: 一般预算拨款（补助） | B4: 82,573,246.80 | C4: 基本支出 | D4: 55,523,246.80 | E4: 201、一般公共服务支出 | F4: 0.00
A5: 经费拨款 | B5: 66,973,246.80 | C5: 301、工资福利支出 | D5: 46,428,086.80 | E5: 202、外交支出 | F5: 0.00
A6: 纳入预算管理的非税收入拨款 | B6: 15,600,000.00 | C6: 302、商品和服务支出 | D6: 8,979,000.00 | E6: 203、国防支出 | F6: 0.00
A7: 纳入专户管理的非税收入拨款 | B7: 2,200,000.00 | C7: 303、对个人和家庭的补助 | D7: 116,160.00 | E7: 204、公共安全支出 | F7: 80,193,258.52
A8: 政府性基金拨款 | B8: 0.00 | C8: 项目支出 | D8: 32,050,000.00 | E8: 205、教育支出 | F8: 0.00
A9: 事业单位经营服务收入 | B9: 0.00 | C9: 302、商品和服务支出 | D9: 18,554,000.00 | E9: 206、科学技术支出 | F9: 0.00
A10: 上级补助收入 | B10: 2,800,000.00 | C10: 303、对个人和家庭的补助 | D10: 4,400,000.00 | E10: 207、文化体育与传媒支出 | F10: 0.00
A11: 附属单位上缴收入 | C11: 307、债务利息及费用支出 | D11: 0.00 | E11: 208、社会保障和就业支出 | F11: 4,217,136.16
A12: 其他收入 | B12: 0.00 | C12: 309、资本性支出（基本建设） | D12: 7,035,000.00 | E12: 209、社保基金支出 | F12: 0.00
A13: 上年结转 | B13: 0.00 | C13: 310、资本性支出 | D13: 1,915,000.00 | E13: 210、医疗卫生与计划生育支出 | F13: 0.00
C14: 311、对企业补助（基本建设） | D14: 0.00 | E14: 211、节能环保支出 | F14: 0.00
C15: 312、对企业补助 | D15: 0.00 | E15: 212、城乡社区支出 | F15: 0.00
C16: 313、对社会保障金补助 | D16: 0.00 | E16: 213、农林水支出 | F16: 0.00
C17: 399、其他支出 | D17: 146,000.00 | E17: 214、交通运输支出 | F17: 0.00
E18: 215、资源勘探信息等支出 | F18: 0.00
E19: 216、商业服务业等支出 | F19: 0.00
E20: 217、金融支出 | F20: 0.00
E21: 219、援助其他地区支出 | F21: 0.00
E22: 220、国土海洋气象等支出 | F22: 0.00
E23: 221、住房保障支出 | F23: 3,162,852.12
E24: 222、粮油物资储备支出 | F24: 0.00
E25: 223、国有资本经营预算支出 | F25: 0.00
E26: 227、预备费 | F26: 0.00
E27: 229、其他支出 | F27: 0.00
E28: 230、转移性支出 | F28: 0.00
E29: 231、债务还本支出 | F29: 0.00
E30: 232、债务付息支出 | F30: 0.00
E31: 233、债务发行费用支出 | F31: 0.00
F32: 0.00
A33: 本年收入合计 | B33: =SUM(B5:B32) -> 87,573,246.80 | C33: 本年支出合计 | D33: 87,573,246.80 | E33: 本年支出合计 | F33: 87,573,246.80

Sheet 部门收入总表
A1: 部门收入总体情况表
A2: 单位名称：临湘市公安局汇总 | L2: 单位：元
A3: 单位 | C3: 总计 | D3: 一般预算拨款 | F3: 纳入专户管理的非税收入拨款 | G3: 政府性基金拨款 | H3: 事业单位经营服务收入 | I3: 上级补助收入 | J3: 附属单位上缴收入 | K3: 其他收入 | L3: 上年结转
A4: 单位代码 | B4: 单位名称 | D4: 经费拨款 | E4: 纳入预算管理的非税收入拨款
B5: 合计 | C5: =C7+C8 -> 87573246.80 | D5: 66973246.80 | E5: 15600000.00 | F5: 2200000.00 | G5: 0.00 | H5: 0.00 | I5: 2800000.00 | J5: 0.00 | K5: 0.00 | L5: 0.00
C6: 87573246.80 | D6: 66973246.80 | E6: 15600000.00 | F6: 2200000.00 | G6: 0.00 | H6: 0.00 | I6: 2800000.00 | J6: 0.00 | K6: 0.00 | L6: 0.00
A7: 117001 | B7: 临湘市公安局 | C7: 68165606.85 | D7: 54265606.85 | E7: 10600000.00 | F7: 1000000.00 | G7: 0.00 | H7: 0.00 | I7: 2300000.00 | J7: 0.00 | K7: 0.00 | L7: 0.00
A8: 118001 | B8: 临湘市公安局交通警察大队 | C8: 19407639.95 | D8: 12707639.95 | E8: 5000000.00 | F8: 1200000.00 | G8: 0.00 | H8: 0.00 | I8: 500000.00 | J8: 0.00 | K8: 0.00 | L8: 0.00

Sheet 部门支出总表
A2: 部门支出总体情况表
A3: 单位名称：临湘市公安局汇总 | L3: 单位：元
A4: 功能科目 | E4: 总计 | F4: 一般预算拨款 | H4: 纳入专户管理的非税收入拨款 | I4: 政府性基金拨款 | J4: 事业单位经营服务收入 | K4: 上级补助收入 | L4: 其他收入
A5: 类 | B5: 款 | C5: 项 | D5: 科目名称 | F5: 经费拨款 | G5: 纳入预算管理的非税收入拨款
D6: 合计 | E6: 87,573,246.80 | F6: 66,973,246.80 | G6: 15,600,000.00 | H6: 2,200,000.00 | I6: 0.00 | J6: 0.00 | K6: 2,800,000.00 | L6: 0.00
A7: 204 | E7: =E9+E1 -> 62,339,771.73 | F7: 48,439,771.73 | G7: 10,600,000.00 | H7: 1,000,000.00 | I7: 0.00 | J7: 0.00 | K7: 2,300,000.00 | L7: 0.00
A8: 204 | E8: 17,853,486.79 | F8: 11,153,486.79 | G8: 5,000,000.00 | H8: 1,200,000.00 | I8: 0.00 | J8: 0.00 | K8: 500,000.00 | L8: 0.00
A9: 204 | B9: 2 | E9: 62,339,771.73 | F9: 48,439,771.73 | G9: 10,600,000.00 | H9: 1,000,000.00 | I9: 0.00 | J9: 0.00 | K9: 2,300,000.00 | L9: 0.00
A10: 204 | B10: 2 | E10: 17,853,486.79 | F10: 11,153,486.79 | G10: 5,000,000.00 | H10: 1,200,000.00 | I10: 0.00 | J10: 0.00 | K10: 500,000.00 | L10: 0.00
A11: 204 | B11: 2 | C11: 1 | D11: 行政运行（公安） | E11: 62,339,771.73 | F11: 48,439,771.73 | G11: 10,600,000.00 | H11: 1,000,000.00 | I11: 0.00 | J11: 0.00 | K11: 2,300,000.00 | L11: 0.00
A12: 204 | B12: 2 | C12: 1 | D12: 行政运行（公安） | E12: 2,925,000.00 | F12: 1,725,000.00 | G12: 0.00 | H12: 1,200,000.00 | I12: 0.00 | J12: 0.00 | K12: 0.00 | L12: 0.00
A13: 204 | B13: 2 | C13: 2 | D13: 一般行政管理事务（公安） | E13: 14,758,486.79 | F13: 9,258,486.79 | G13: 5,000,000.00 | H13: 0.00 | I13: 0.00 | J13: 0.00 | K13: 500,000.00 | L13: 0.00
A14: 204 | B14: 2 | C14: 99 | D14: 其他公安支出 | E14: 170,000.00 | F14: 170,000.00 | G14: 0.00 | H14: 0.00 | I14: 0.00 | J14: 0.00 | K14: 0.00 | L14: 0.00
A15: 208 | B15: 5 | C15: 5 | D15: 机关事业单位基本养老保险缴费支出 | E15: 3,329,048.64 | F15: 3,329,048.64 | G15: 0.00 | H15: 0.00 | I15: 0.00 | J15: 0.00 | K15: 0.00 | L15: 0.00
A16: 208 | B16: 5 | C16: 5 | D16: 机关事业单位基本养老保险缴费支出 | E16: 888,087.52 | F16: 888,087.52 | G16: 0.00 | H16: 0.00 | I16: 0.00 | J16: 0.00 | K16: 0.00 | L16: 0.00
A17: 221 | B17: 2 | C17: 1 | D17: 住房公积金 | E17: 2,496,786.48 | F17: 2,496,786.48 | G17: 0.00 | H17: 0.00 | I17: 0.00 | J17: 0.00 | K17: 0.00 | L17: 0.00
A18: 221 | B18: 2 | C18: 1 | D18: 住房公积金 | E18: 666,065.64 | F18: 666,065.64 | G18: 0.00 | H18: 0.00 | I18: 0.00 | J18: 0.00 | K18: 0.00 | L18: 0.00

Sheet 部门支出总表(分类)
A2: 部门支出总表分类
A3: 单位名称：临湘市公安局汇总 | R3: 单位：元
A4: 功能科目 | E4: 总计 | F4: 基本支出 | J4: 项目支出
A5: 科目编码 | D5: 科目名称 | F5: 合计 | G5: 工资福利支出 | H5: 一般商品和服务支出 | I5: 对个人和家庭的补助 | J5: 合计 | K5: 商品和服务支出 | L5: 对个人和家庭的补助支出 | M5: 基本建设 | N5: 其他资本性支出 | O5: 对企事业单位的补贴 | P5: 对社保基金的补助 | Q5: 其他支出 | R5: 债务利息及费用支出
A6: 类 | B6: 款 | C6: 项
D7: 合计 | E7: =E8+E9+E16+E17+E22+E23 -> 87,573,246.80 | F7: =F8+F9+F16+F17+F22+F23 -> 55,523,246.80 | G7: 46,428,086.80 | H7: 8,979,000.00 | I7: 116,160.00 | J7: 32,050,000.00 | K7: 18,554,000.00 | L7: 4,400,000.00 | M7: 7,035,000.00 | N7: 1,915,000.00 | O7: 0.00 | P7: 0.00 | Q7: 146,000.00 | R7: 0.00
A8: 204 | E8: 62,339,771.73 | F8: 38,795,771.73 | G8: 31,425,611.73 | H8: 7,254,000.00 | I8: 116,160.00 | J8: 23,544,000.00 | K8: 12,674,000.00 | L8: 3,900,000.00 | M8: 6,970,000.00 | N8: 0.00 | O8: 0.00 | P8: 0.00 | Q8: 0.00 | R8: 0.00
A9: 204 | E9: 17,853,486.79 | F9: 9,347,486.79 | G9: 7,622,486.79 | H9: 1,725,000.00 | I9: 0.00 | J9: 8,506,000.00 | K9: 5,880,000.00 | L9: 500,000.00 | M9: 65,000.00 | N9: 1,915,000.00 | O9: 0.00 | P9: 0.00 | Q9: 146,000.00 | R9: 0.00
B10: 02 | E10: 62,339,771.73 | F10: 38,795,771.73 | G10: 31,425,611.73 | H10: 7,254,000.00 | I10: 116,160.00 | J10: 23,544,000.00 | K10: 12,674,000.00 | L10: 3,900,000.00 | M10: 6,970,000.00 | N10: 0.00 | O10: 0.00 | P10: 0.00 | Q10: 0.00 | R10: 0.00
B11: 02 | E11: 17,853,486.79 | F11: 9,347,486.79 | G11: 7,622,486.79 | H11: 1,725,000.00 | I11: 0.00 | J11: 8,506,000.00 | K11: 5,880,000.00 | L11: 500,000.00 | M11: 65,000.00 | N11: 1,915,000.00 | O11: 0.00 | P11: 0.00 | Q11: 146,000.00 | R11: 0.00
A12: 204 | B12: 02 | C12: 01 | D12: 行政运行（公安） | E12: 62,339,771.73 | F12: 38,795,771.73 | G12: 31,425,611.73 | H12: 7,254,000.00 | I12: 116,160.00 | J12: 23,544,000.00 | K12: 12,674,000.00 | L12: 3,900,000.00 | M12: 6,970,000.00 | N12: 0.00 | O12: 0.00 | P12: 0.00 | Q12: 0.00 | R12: 0.00
A13: 204 | B13: 2 | C13: 1 | D13: 行政运行（公安） | E13: 2,925,000.00 | F13: 1,725,000.00 | G13: 0.00 | H13: 1,725,000.00 | I13: 0.00 | J13: 1,200,000.00 | K13: 1,200,000.00 | L13: 0.00 | M13: 0.00 | N13: 0.00 | O13: 0.00 | P13: 0.00 | Q13: 0.00 | R13: 0.00
A14: 204 | B14: 2 | C14: 2 | D14: 一般行政管理事务（公安） | E14: 14,758,486.79 | F14: 7,622,486.79 | G14: 7,622,486.79 | H14: 0.00 | I14: 0.00 | J14: 7,136,000.00 | K14: 4,590,000.00 | L14: 500,000.00 | M14: 0.00 | N14: 1,900,000.00 | O14: 0.00 | P14: 0.00 | Q14: 146,000.00 | R14: 0.00
A15: 204 | B15: 2 | C15: 99 | D15: 其他公安支出 | E15: 170,000.00 | F15: 0.00 | G15: 0.00 | H15: 0.00 | I15: 0.00 | J15: 170,000.00 | K15: 90,000.00 | L15: 0.00 | M15: 65,000.00 | N15: 15,000.00 | O15: 0.00 | P15: 0.00 | Q15: 0.00 | R15: 0.00
A16: 208 | E16: 3,329,048.64 | F16: 3,329,048.64 | G16: 3,329,048.64 | H16: 0.00 | I16: 0.00 | J16: 0.00 | K16: 0.00 | L16: 0.00 | M16: 0.00 | N16: 0.00 | O16: 0.00 | P16: 0.00 | Q16: 0.00 | R16: 0.00
A17: 208 | E17: 888,087.52 | F17: 888,087.52 | G17: 888,087.52 | H17: 0.00 | I17: 0.00 | J17: 0.00 | K17: 0.00 | L17: 0.00 | M17: 0.00 | N17: 0.00 | O17: 0.00 | P17: 0.00 | Q17: 0.00 | R17: 0.00
B18: 05 | E18: 3,329,048.64 | F18: 3,329,048.64 | G18: 3,329,048.64 | H18: 0.00 | I18: 0.00 | J18: 0.00 | K18: 0.00 | L18: 0.00 | M18: 0.00 | N18: 0.00 | O18: 0.00 | P18: 0.00 | Q18: 0.00 | R18: 0.00
B19: 05 | E19: 888,087.52 | F19: 888,087.52 | G19: 888,087.52 | H19: 0.00 | I19: 0.00 | J19: 0.00 | K19: 0.00 | L19: 0.00 | M19: 0.00 | N19: 0.00 | O19: 0.00 | P19: 0.00 | Q19: 0.00 | R19: 0.00
A20: 208 | B20: 05 | C20: 05 | D20: 机关事业单位基本养老保险缴费支出 | E20: 3,329,048.64 | F20: 3,329,048.64 | G20: 3,329,048.64 | H20: 0.00 | I20: 0.00 | J20: 0.00 | K20: 0.00 | L20: 0.00 | M20: 0.00 | N20: 0.00 | O20: 0.00 | P20: 0.00 | Q20: 0.00 | R20: 0.00
A21: 208 | B21: 05 | C21: 05 | D21: 机关事业单位基本养老保险缴费支出 | E21: 888,087.52 | F21: 888,087.52 | G21: 888,087.52 | H21: 0.00 | I21: 0.00 | J21: 0.00 | K21: 0.00 | L21: 0.00 | M21: 0.00 | N21: 0.00 | O21: 0.00 | P21: 0.00 | Q21: 0.00 | R21: 0.00
A22: 221 | E22: 2,496,786.48 | F22: 2,496,786.48 | G22: 2,496,786.48 | H22: 0.00 | I22: 0.00 | J22: 0.00 | K22: 0.00 | L22: 0.00 | M22: 0.00 | N22: 0.00 | O22: 0.00 | P22: 0.00 | Q22: 0.00 | R22: 0.00
A23: 221 | E23: 666,065.64 | F23: 666,065.64 | G23: 666,065.64 | H23: 0.00 | I23: 0.00 | J23: 0.00 | K23: 0.00 | L23: 0.00 | M23: 0.00 | N23: 0.00 | O23: 0.00 | P23: 0.00 | Q23: 0.00 | R23: 0.00
A24: 221 | B24: 2 | C24: 1 | D24: 住房公积金 | E24: 2,496,786.48 | F24: 2,496,786.48 | G24: 2,496,786.48 | H24: 0.00 | I24: 0.00 | J24: 0.00 | K24: 0.00 | L24: 0.00 | M24: 0.00 | N24: 0.00 | O24: 0.00 | P24: 0.00 | Q24: 0.00 | R24: 0.00
A25: 221 | B25: 02 | C25: 01 | D25: 住房公积金 | E25: 666,065.64 | F25: 666,065.64 | G25: 666,065.64 | H25: 0.00 | I25: 0.00 | J25: 0.00 | K25: 0.00 | L25: 0.00 | M25: 0.00 | N25: 0.00 | O25: 0.00 | P25: 0.00 | Q25: 0.00 | R25: 0.00

Sheet 支出分类（政府预算）
A2: 部门支出总表(按政府预算经济分类)
A3: 单位名称：临湘市公安局汇总 | T3: 单位：元
A4: 功能科目 | D4: 功能科目 | E4: 总计 | F4: 机关工资福利支出 | G4: 机关商品和服务支出 | H4: 机关资本性支出（一） | I4: 机关资本性支出（二） | J4: 对事业单位经常性补助 | K4: 对事业单位资本性补助 | L4: 对企业补助 | M4: 对企业资本性支出 | N4: 对个人和家庭的补助 | O4: 对社会保障基金补助 | P4: 债务利息及费用支出 | Q4: 预备费及预留 | R4: 转移性支出 | S4: 债务还本支出 | T4: 其他支出
A5: 类 | B5: 款 | C5: 项
D7: 合计 | E7: =E8+E11+E14+E17+E24+E25 -> 87573246.80 | F7: =F8+F11+F14+F17+F24+F25 -> 46428086.80 | G7: 27533000.00 | H7: 1915000.00 | I7: 7035000.00 | J7: 0.00 | K7: 0.00 | L7: 0.00 | M7: 0.00 | N7: 4516160.00 | O7: 0.00 | P7: 0.00 | Q7: 0.00 | R7: 0.00 | S7: 0.00 | T7: 146000.00
A8: 204 | E8: 62339771.73 | F8: 31425611.73 | G8: 19928000.00 | H8: 0.00 | I8: 6970000.00 | J8: 0.00 | K8: 0.00 | L8: 0.00 | M8: 0.00 | N8: 4016160.00 | O8: 0.00 | P8: 0.00 | Q8: 0.00 | R8: 0.00 | S8: 0.00 | T8: 0.00
A9: 204 | B9: 02 | E9: 62339771.73 | F9: 31425611.73 | G9: 19928000.00 | H9: 0.00 | I9: 6970000.00 | J9: 0.00 | K9: 0.00 | L9: 0.00 | M9: 0.00 | N9: 4016160.00 | O9: 0.00 | P9: 0.00 | Q9: 0.00 | R9: 0.00 | S9: 0.00 | T9: 0.00
A10: 204 | B10: 02 | C10: 01 | D10: 行政运行（公安） | E10: 62339771.73 | F10: 31425611.73 | G10: 19928000.00 | H10: 0.00 | I10: 6970000.00 | J10: 0.00 | K10: 0.00 | L10: 0.00 | M10: 0.00 | N10: 4016160.00 | O10: 0.00 | P10: 0.00 | Q10: 0.00 | R10: 0.00 | S10: 0.00 | T10: 0.00
A11: 208 | E11: 3329048.64 | F11: 3329048.64 | G11: 0.00 | H11: 0.00 | I11: 0.00 | J11: 0.00 | K11: 0.00 | L11: 0.00 | M11: 0.00 | N11: 0.00 | O11: 0.00 | P11: 0.00 | Q11: 0.00 | R11: 0.00 | S11: 0.00 | T11: 0.00
A12: 208 | B12: 5 | E12: 3329048.64 | F12: 3329048.64 | G12: 0.00 | H12: 0.00 | I12: 0.00 | J12: 0.00 | K12: 0.00 | L12: 0.00 | M12: 0.00 | N12: 0.00 | O12: 0.00 | P12: 0.00 | Q12: 0.00 | R12: 0.00 | S12: 0.00 | T12: 0.00
A13: 208 | B13: 05 | C13: 05 | D13: 机关事业单位基本养老保险缴费支出 | E13: 3329048.64 | F13: 3329048.64 | G13: 0.00 | H13: 0.00 | I13: 0.00 | J13: 0.00 | K13: 0.00 | L13: 0.00 | M13: 0.00 | N13: 0.00 | O13: 0.00 | P13: 0.00 | Q13: 0.00 | R13: 0.00 | S13: 0.00 | T13: 0.00
A14: 221 | E14: 2496786.48 | F14: 2496786.48 | G14: 0.00 | H14: 0.00 | I14: 0.00 | J14: 0.00 | K14: 0.00 | L14: 0.00 | M14: 0.00 | N14: 0.00 | O14: 0.00 | P14: 0.00 | Q14: 0.00 | R14: 0.00 | S14: 0.00 | T14: 0.00
A15: 221 | B15: 02 | E15: 2496786.48 | F15: 2496786.48 | G15: 0.00 | H15: 0.00 | I15: 0.00 | J15: 0.00 | K15: 0.00 | L15: 0.00 | M15: 0.00 | N15: 0.00 | O15: 0.00 | P15: 0.00 | Q15: 0.00 | R15: 0.00 | S15: 0.00 | T15: 0.00
A16: 221 | B16: 02 | C16: 01 | D16: 住房公积金 | E16: 2496786.48 | F16: 2496786.48 | G16: 0.00 | H16: 0.00 | I16: 0.00 | J16: 0.00 | K16: 0.00 | L16: 0.00 | M16: 0.00 | N16: 0.00 | O16: 0.00 | P16: 0.00 | Q16: 0.00 | R16: 0.00 | S16: 0.00 | T16: 0.00
A17: 204 | E17: 17853486.79 | F17: 7622486.79 | G17: 7605000.00 | H17: 1915000.00 | I17: 65000.00 | J17: 0.00 | K17: 0.00 | L17: 0.00 | M17: 0.00 | N17: 500000.00 | O17: 0.00 | P17: 0.00 | Q17: 0.00 | R17: 0.00 | S17: 0.00 | T17: 146000.00
A18: 204 | B18: 02 | E18: 17853486.79 | F18: 7622486.79 | G18: 7605000.00 | H18: 1915000.00 | I18: 65000.00 | J18: 0.00 | K18: 0.00 | L18: 0.00 | M18: 0.00 | N18: 500000.00 | O18: 0.00 | P18: 0.00 | Q18: 0.00 | R18: 0.00 | S18: 0.00 | T18: 146000.00
A19: 204 | B19: 02 | C19: 01 | D19: 行政运行（公安） | E19: 2925000.00 | F19: 0.00 | G19: 2925000.00 | H19: 0.00 | I19: 0.00 | J19: 0.00 | K19: 0.00 | L19: 0.00 | M19: 0.00 | N19: 0.00 | O19: 0.00 | P19: 0.00 | Q19: 0.00 | R19: 0.00 | S19: 0.00 | T19: 0.00
A20: 204 | B20: 02 | C20: 02 | D20: 一般行政管理事务（公安） | E20: 14758486.79 | F20: 7622486.79 | G20: 4590000.00 | H20: 1900000.00 | I20: 0.00 | J20: 0.00 | K20: 0.00 | L20: 0.00 | M20: 0.00 | N20: 500000.00 | O20: 0.00 | P20: 0.00 | Q20: 0.00 | R20: 0.00 | S20: 0.00 | T20: 146000.00
A21: 204 | B21: 02 | C21: 99 | D21: 其他公安支出 | E21: 170000.00 | F21: 0.00 | G21: 90000.00 | H21: 15000.00 | I21: 65000.00 | J21: 0.00 | K21: 0.00 | L21: 0.00 | M21: 0.00 | N21: 0.00 | O21: 0.00 | P21: 0.00 | Q21: 0.00 | R21: 0.00 | S21: 0.00 | T21: 0.00
A22: 208 | E22: 888087.52 | F22: 888087.52 | G22: 0.00 | H22: 0.00 | I22: 0.00 | J22: 0.00 | K22: 0.00 | L22: 0.00 | M22: 0.00 | N22: 0.00 | O22: 0.00 | P22: 0.00 | Q22: 0.00 | R22: 0.00 | S22: 0.00 | T22: 0.00
A23: 208 | B23: 05 | E23: 888087.52 | F23: 888087.52 | G23: 0.00 | H23: 0.00 | I23: 0.00 | J23: 0.00 | K23: 0.00 | L23: 0.00 | M23: 0.00 | N23: 0.00 | O23: 0.00 | P23: 0.00 | Q23: 0.00 | R23: 0.00 | S23: 0.00 | T23: 0.00
A24: 208 | B24: 05 | C24: 05 | D24: 机关事业单位基本养老保险缴费支出 | E24: 888087.52 | F24: 888087.52 | G24: 0.00 | H24: 0.00 | I24: 0.00 | J24: 0.00 | K24: 0.00 | L24: 0.00 | M24: 0.00 | N24: 0.00 | O24: 0.00 | P24: 0.00 | Q24: 0.00 | R24: 0.00 | S24: 0.00 | T24: 0.00
A25: 221 | E25: 666065.64 | F25: 666065.64 | G25: 0.00 | H25: 0.00 | I25: 0.00 | J25: 0.00 | K25: 0.00 | L25: 0.00 | M25: 0.00 | N25: 0.00 | O25: 0.00 | P25: 0.00 | Q25: 0.00 | R25: 0.00 | S25: 0.00 | T25: 0.00
A26: 221 | B26: 02 | E26: 666065.64 | F26: 666065.64 | G26: 0.00 | H26: 0.00 | I26: 0.00 | J26: 0.00 | K26: 0.00 | L26: 0.00 | M26: 0.00 | N26: 0.00 | O26: 0.00 | P26: 0.00 | Q26: 0.00 | R26: 0.00 | S26: 0.00 | T26: 0.00
A27: 221 | B27: 02 | C27: 01 | D27: 住房公积金 | E27: 666065.64 | F27: 666065.64 | G27: 0.00 | H27: 0.00 | I27: 0.00 | J27: 0.00 | K27: 0.00 | L27: 0.00 | M27: 0.00 | N27: 0.00 | O27: 0.00 | P27: 0.00 | Q27: 0.00 | R27: 0.00 | S27: 0.00 | T27: 0.00

Sheet 基本-工资福利
A2: 基本支出预算明细表-工资福利
A3: 单位名称：临湘市公安局汇总 | V3: 单位：元
A4: 功能科目 | D4: 科目名称 | E4: 总计 | F4: 工资性支出 | K4: 社会保障缴费 | S4: 伙食补贴支出 | U4: 附加性支出6% | V4: 其他工资福利支出
A5: 类 | B5: 款 | C5: 项 | F5: 合计 | G5: 基本工资 | H5: 津贴补贴 | I5: 奖金 | J5: 绩效工资 | K5: 合计 | L5: 基本医疗保险 | M5: 医疗费 | N5: 其他社会保障缴费 | O5: 机关事业单位基本养老保险缴费 | P5: 职业年金 | Q5: 住房公积金 | R5: 公务员医疗补助缴费 | S5: 合计 | T5: 伙食补助费
D6: 合计 | E6: =E7+E10+E13+E16+E19+E22 -> 46428086.80 | F6: =F7+F10+F13+F16+F19+F22 -> 28828861.00 | G6: 17154444.00 | H6: 10244880.00 | I6: 1429537.00 | J6: 0.00 | K6: 9482639.16 | L6: 1844997.07 | M6: 0.00 | N6: 257653.81 | O6: 4217136.16 | P6: 0.00 | Q6: 3162852.12 | R6: 0.00 | S6: 0.00 | T6: 0.00 | U6: 1029266.64 | V6: 7087320.00
A7: 204 | D7: 行政运行（公安） | E7: 31425611.73 | F7: 23278314.00 | G7: 13461192.00 | H7: 8695356.00 | I7: 1121766.00 | J7: 0.00 | K7: 1661826.21 | L7: 1456458.78 | M7: 0.00 | N7: 205367.43 | O7: 0.00 | P7: 0.00 | Q7: 0.00 | R7: 0.00 | S7: 0.00 | T7: 0.00 | U7: 807,671.52 | V7: 5677800.00
A8: 204 | B8: 02 | D8: 行政运行（公安） | E8: 31425611.73 | F8: 23278314.00 | G8: 13461192.00 | H8: 8695356.00 | I8: 1121766.00 | J8: 0.00 | K8: 1661826.21 | L8: 1456458.78 | M8: 0.00 | N8: 205367.43 | O8: 0.00 | P8: 0.00 | Q8: 0.00 | R8: 0.00 | S8: 0.00 | T8: 0.00 | U8: 807,671.52 | V8: 5677800.00
A9: 204 | B9: 02 | C9: 01 | D9: 行政运行（公安） | E9: 31425611.73 | F9: 23278314.00 | G9: 13461192.00 | H9: 8695356.00 | I9: 1121766.00 | J9: 0.00 | K9: 1661826.21 | L9: 1456458.78 | M9: 0.00 | N9: 205367.43 | O9: 0.00 | P9: 0.00 | Q9: 0.00 | R9: 0.00 | S9: 0.00 | T9: 0.00 | U9: 807,671.52 | V9: 5677800.00
A10: 208 | D10: 机关事业单位基本养老保险缴费支出 | E10: 3329048.64 | F10: 0.00 | G10: 0.00 | H10: 0.00 | I10: 0.00 | J10: 0.00 | K10: 3329048.64 | L10: 0.00 | M10: 0.00 | N10: 0.00 | O10: 3329048.64 | P10: 0.00 | Q10: 0.00 | R10: 0.00 | S10: 0.00 | T10: 0.00 | U10: 0.00 | V10: 0.00
A11: 208 | B11: 05 | D11: 机关事业单位基本养老保险缴费支出 | E11: 3329048.64 | F11: 0.00 | G11: 0.00 | H11: 0.00 | I11: 0.00 | J11: 0.00 | K11: 3329048.64 | L11: 0.00 | M11: 0.00 | N11: 0.00 | O11: 3329048.64 | P11: 0.00 | Q11: 0.00 | R11: 0.00 | S11: 0.00 | T11: 0.00 | U11: 0.00 | V11: 0.00
A12: 208 | B12: 05 | C12: 05 | D12: 机关事业单位基本养老保险缴费支出 | E12: 3329048.64 | F12: 0.00 | G12: 0.00 | H12: 0.00 | I12: 0.00 | J12: 0.00 | K12: 3329048.64 | L12: 0.00 | M12: 0.00 | N12: 0.00 | O12: 3329048.64 | P12: 0.00 | Q12: 0.00 | R12: 0.00 | S12: 0.00 | T12: 0.00 | U12: 0.00 | V12: 0.00
A13: 221 | D13: 住房公积金 | E13: 2496786.48 | F13: 0.00 | G13: 0.00 | H13: 0.00 | I13: 0.00 | J13: 0.00 | K13: 2496786.48 | L13: 0.00 | M13: 0.00 | N13: 0.00 | O13: 0.00 | P13: 0.00 | Q13: 2496786.48 | R13: 0.00 | S13: 0.00 | T13: 0.00 | U13: 0.00 | V13: 0.00
A14: 221 | B14: 02 | D14: 住房公积金 | E14: 2496786.48 | F14: 0.00 | G14: 0.00 | H14: 0.00 | I14: 0.00 | J14: 0.00 | K14: 2496786.48 | L14: 0.00 | M14: 0.00 | N14: 0.00 | O14: 0.00 | P14: 0.00 | Q14: 2496786.48 | R14: 0.00 | S14: 0.00 | T14: 0.00 | U14: 0.00 | V14: 0.00
A15: 221 | B15: 02 | C15: 01 | D15: 住房公积金 | E15: 2496786.48 | F15: 0.00 | G15: 0.00 | H15: 0.00 | I15: 0.00 | J15: 0.00 | K15: 2496786.48 | L15: 0.00 | M15: 0.00 | N15: 0.00 | O15: 0.00 | P15: 0.00 | Q15: 2496786.48 | R15: 0.00 | S15: 0.00 | T15: 0.00 | U15: 0.00 | V15: 0.00
A16: 204 | D16: 一般行政管理事务（公安） | E16: 7622486.79 | F16: 5550547.00 | G16: 3693252.00 | H16: 1549524.00 | I16: 307771.00 | J16: 0.00 | K16: 440824.67 | L16: 388538.29 | M16: 0.00 | N16: 52286.38 | O16: 0.00 | P16: 0.00 | Q16: 0.00 | R16: 0.00 | S16: 0.00 | T16: 0.00 | U16: 221,595.12 | V16: 1409520.00
A17: 204 | B17: 02 | D17: 一般行政管理事务（公安） | E17: 7622486.79 | F17: 5550547.00 | G17: 3693252.00 | H17: 1549524.00 | I17: 307771.00 | J17: 0.00 | K17: 440824.67 | L17: 388538.29 | M17: 0.00 | N17: 52286.38 | O17: 0.00 | P17: 0.00 | Q17: 0.00 | R17: 0.00 | S17: 0.00 | T17: 0.00 | U17: 221,595.12 | V17: 1409520.00
A18: 204 | B18: 02 | C18: 02 | D18: 一般行政管理事务（公安） | E18: 7622486.79 | F18: 5550547.00 | G18: 3693252.00 | H18: 1549524.00 | I18: 307771.00 | J18: 0.00 | K18: 440824.67 | L18: 388538.29 | M18: 0.00 | N18: 52286.38 | O18: 0.00 | P18: 0.00 | Q18: 0.00 | R18: 0.00 | S18: 0.00 | T18: 0.00 | U18: 221,595.12 | V18: 1409520.00
A19: 208 | D19: 机关事业单位基本养老保险缴费支出 | E19: 888087.52 | F19: 0.00 | G19: 0.00 | H19: 0.00 | I19: 0.00 | J19: 0.00 | K19: 888087.52 | L19: 0.00 | M19: 0.00 | N19: 0.00 | O19: 888087.52 | P19: 0.00 | Q19: 0.00 | R19: 0.00 | S19: 0.00 | T19: 0.00 | U19: 0.00 | V19: 0.00
A20: 208 | B20: 05 | D20: 机关事业单位基本养老保险缴费支出 | E20: 888087.52 | F20: 0.00 | G20: 0.00 | H20: 0.00 | I20: 0.00 | J20: 0.00 | K20: 888087.52 | L20: 0.00 | M20: 0.00 | N20: 0.00 | O20: 888087.52 | P20: 0.00 | Q20: 0.00 | R20: 0.00 | S20: 0.00 | T20: 0.00 | U20: 0.00 | V20: 0.00
A21: 208 | B21: 05 | C21: 05 | D21: 机关事业单位基本养老保险缴费支出 | E21: 888087.52 | F21: 0.00 | G21: 0.00 | H21: 0.00 | I21: 0.00 | J21: 0.00 | K21: 888087.52 | L21: 0.00 | M21: 0.00 | N21: 0.00 | O21: 888087.52 | P21: 0.00 | Q21: 0.00 | R21: 0.00 | S21: 0.00 | T21: 0.00 | U21: 0.00 | V21: 0.00
A22: 221 | D22: 住房公积金 | E22: 666065.64 | F22: 0.00 | G22: 0.00 | H22: 0.00 | I22: 0.00 | J22: 0.00 | K22: 666065.64 | L22: 0.00 | M22: 0.00 | N22: 0.00 | O22: 0.00 | P22: 0.00 | Q22: 666065.64 | R22: 0.00 | S22: 0.00 | T22: 0.00 | U22: 0.00 | V22: 0.00
A23: 221 | B23: 02 | D23: 住房公积金 | E23: 666065.64 | F23: 0.00 | G23: 0.00 | H23: 0.00 | I23: 0.00 | J23: 0.00 | K23: 666065.64 | L23: 0.00 | M23: 0.00 | N23: 0.00 | O23: 0.00 | P23: 0.00 | Q23: 666065.64 | R23: 0.00 | S23: 0.00 | T23: 0.00 | U23: 0.00 | V23: 0.00
A24: 221 | B24: 02 | C24: 01 | D24: 住房公积金 | E24: 666065.64 | F24: 0.00 | G24: 0.00 | H24: 0.00 | I24: 0.00 | J24: 0.00 | K24: 666065.64 | L24: 0.00 | M24: 0.00 | N24: 0.00 | O24: 0.00 | P24: 0.00 | Q24: 666065.64 | R24: 0.00 | S24: 0.00 | T24: 0.00 | U24: 0.00 | V24: 0.00

Sheet 基本-工资福利（政府预算）
A2: 基本支出预算明细表-工资福利（政府预算）
A3: 单位名称：临湘市公安局汇总 | M3: 单位：元
A4: 功能科目 | D4: 科目名称 | E4: 总计 | F4: 机关工资福利支出 | K4: 对事业单位经常性补助
A5: 类 | B5: 款 | C5: 项 | F5: 合计 | G5: 工资奖金津补贴 | H5: 社会保障缴费 | I5: 住房公积金 | J5: 其他工资福利支出 | K5: 合计 | L5: 工资福利支出 | M5: 其他对事业单位补助
D6: 合计 | E6: =E7+E10+E13+E16+E19+E22 -> 46428086.80 | F6: =F7+F10+F13+F16+F19+F22 -> 46428086.80 | G6: 28828861.00 | H6: 6319787.04 | I6: 3162852.12 | J6: 8116586.64 | K6: 0.00 | L6: 0.00 | M6: 0.00
A7: 204 | D7: 行政运行（公安） | E7: 31425611.73 | F7: 31425611.73 | G7: 23278314.00 | H7: 1661826.21 | I7: 0.00 | J7: 6485471.52 | K7: 0.00 | L7: 0.00 | M7: 0.00
A8: 204 | D8: 2 | E8: 31425611.73 | F8: 31425611.73 | G8: 23278314.00 | H8: 1661826.21 | I8: 0.00 | J8: 6485471.52 | K8: 0.00 | L8: 0.00 | M8: 0.00
A9: 204 | B9: 02 | C9: 01 | D9: 行政运行（公安） | E9: 31425611.73 | F9: 31425611.73 | G9: 23278314.00 | H9: 1661826.21 | I9: 0.00 | J9: 6485471.52 | K9: 0.00 | L9: 0.00 | M9: 0.00
A10: 208 | D10: 机关事业单位基本养老保险缴费支出 | E10: 3329048.64 | F10: 3329048.64 | G10: 0.00 | H10: 3329048.64 | I10: 0.00 | J10: 0.00 | K10: 0.00 | L10: 0.00 | M10: 0.00
A11: 208 | D11: 5 | E11: 3329048.64 | F11: 3329048.64 | G11: 0.00 | H11: 3329048.64 | I11: 0.00 | J11: 0.00 | K11: 0.00 | L11: 0.00 | M11: 0.00
A12: 208 | B12: 05 | C12: 05 | D12: 机关事业单位基本养老保险缴费支出 | E12: 3329048.64 | F12: 3329048.64 | G12: 0.00 | H12: 3329048.64 | I12: 0.00 | J12: 0.00 | K12: 0.00 | L12: 0.00 | M12: 0.00
A13: 221 | D13: 住房公积金 | E13: 2496786.48 | F13: 2496786.48 | G13: 0.00 | H13: 0.00 | I13: 2496786.48 | J13: 0.00 | K13: 0.00 | L13: 0.00 | M13: 0.00
A14: 221 | D14: 2 | E14: 2496786.48 | F14: 2496786.48 | G14: 0.00 | H14: 0.00 | I14: 2496786.48 | J14: 0.00 | K14: 0.00 | L14: 0.00 | M14: 0.00
A15: 221 | B15: 02 | C15: 01 | D15: 住房公积金 | E15: 2496786.48 | F15: 2496786.48 | G15: 0.00 | H15: 0.00 | I15: 2496786.48 | J15: 0.00 | K15: 0.00 | L15: 0.00 | M15: 0.00
A16: 204 | D16: 一般行政管理事务（公安） | E16: 7622486.79 | F16: 7622486.79 | G16: 5550547.00 | H16: 440824.67 | I16: 0.00 | J16: 1631115.12 | K16: 0.00 | L16: 0.00 | M16: 0.00
A17: 204 | D17: 2 | E17: 7622486.79 | F17: 7622486.79 | G17: 5550547.00 | H17: 440824.67 | I17: 0.00 | J17: 1631115.12 | K17: 0.00 | L17: 0.00 | M17: 0.00
A18: 204 | B18: 02 | C18: 02 | D18: 一般行政管理事务（公安） | E18: 7622486.79 | F18: 7622486.79 | G18: 5550547.00 | H18: 440824.67 | I18: 0.00 | J18: 1631115.12 | K18: 0.00 | L18: 0.00 | M18: 0.00
A19: 208 | D19: 机关事业单位基本养老保险缴费支出 | E19: 888087.52 | F19: 888087.52 | G19: 0.00 | H19: 888087.52 | I19: 0.00 | J19: 0.00 | K19: 0.00 | L19: 0.00 | M19: 0.00
A20: 208 | D20: 5 | E20: 888087.52 | F20: 888087.52 | G20: 0.00 | H20: 888087.52 | I20: 0.00 | J20: 0.00 | K20: 0.00 | L20: 0.00 | M20: 0.00
A21: 208 | B21: 05 | C21: 05 | D21: 机关事业单位基本养老保险缴费支出 | E21: 888087.52 | F21: 888087.52 | G21: 0.00 | H21: 888087.52 | I21: 0.00 | J21: 0.00 | K21: 0.00 | L21: 0.00 | M21: 0.00
A22: 221 | D22: 住房公积金 | E22: 666065.64 | F22: 666065.64 | G22: 0.00 | H22: 0.00 | I22: 666065.64 | J22: 0.00 | K22: 0.00 | L22: 0.00 | M22: 0.00
A23: 221 | D23: 2 | E23: 666065.64 | F23: 666065.64 | G23: 0.00 | H23: 0.00 | I23: 666065.64 | J23: 0.00 | K23: 0.00 | L23: 0.00 | M23: 0.00
A24: 221 | B24: 02 | C24: 01 | D24: 住房公积金 | E24: 666065.64 | F24: 666065.64 | G24: 0.00 | H24: 0.00 | I24: 666065.64 | J24: 0.00 | K24: 0.00 | L24: 0.00 | M24: 0.00

Sheet 基本-商品和服务支出
A2: 基本支出预算明细表-商品和服务支出
A3: 单位名称：临湘市公安局汇总 | AF3: 单位：元
A4: 功能科目 | D4: 科目名称 | E4: 总计 | F4: 办公费 | G4: 日常印刷费 | H4: 水费 | I4: 电费 | J4: 邮电费 | K4: 取暖费 | L4: 物业管理费 | M4: 差旅费 | N4: 日常维修(护)费 | O4: 租赁费 | P4: 会议费 | Q4: 培训费 | R4: 公务接待费 | S4: 劳务费 | T4: 工会经费 | U4: 福利费 | V4: 公务用车运行维护费 | W4: 其他交通费 | X4: 其他一般商品和服务支出 | Y4: 咨询费 | Z4: 手续费 | AA4: 因公出国（境）费 | AB4: 专用材料费 | AC4: 被装购置费 | AD4: 专用燃料费 | AE4: 委托业务费 | AF4: 税金及附加费用
A5: 类 | B5: 款 | C5: 项
D6: 合计 | E6: =E7+E10 -> 8,979,000.00 | F6: =F7+F10 -> 387,000.00 | G6: 100,000.00 | H6: 150,000.00 | I6: 920,000.00 | J6: 388,300.00 | K6: 0.00 | L6: 500,000.00 | M6: 926,235.00 | N6: 315,000.00 | O6: 220,000.00 | P6: 185,000.00 | Q6: 95,000.00 | R6: 470,000.00 | S6: 212,200.00 | T6: 545,000.00 | U6: 50,000.00 | V6: 1,705,000.00 | W6: 0.00 | X6: 1,282,765.00 | Y6: 5,000.00 | Z6: 172,500.00 | AA6: 0.00 | AB6: 300,000.00 | AC6: 0.00 | AD6: 0.00 | AE6: 50,000.00 | AF6: 0.00
A7: 204 | E7: 7,254,000.00 | F7: 287,000.00 | G7: 80,000.00 | H7: 120,000.00 | I7: 620,000.00 | J7: 348,300.00 | K7: 0.00 | L7: 500,000.00 | M7: 876,235.00 | N7: 300,000.00 | O7: 200,000.00 | P7: 135,000.00 | Q7: 80,000.00 | R7: 300,000.00 | S7: 192,200.00 | T7: 380,000.00 | U7: 0.00 | V7: 1,320,000.00 | W7: 0.00 | X7: 1,215,265.00 | Y7: 0.00 | Z7: 0.00 | AA7: 0.00 | AB7: 300,000.00 | AC7: 0.00 | AD7: 0.00 | AE7: 0.00 | AF7: 0.00
B8: 02 | E8: 7,254,000.00 | F8: 287,000.00 | G8: 80,000.00 | H8: 120,000.00 | I8: 620,000.00 | J8: 348,300.00 | K8: 0.00 | L8: 500,000.00 | M8: 876,235.00 | N8: 300,000.00 | O8: 200,000.00 | P8: 135,000.00 | Q8: 80,000.00 | R8: 300,000.00 | S8: 192,200.00 | T8: 380,000.00 | U8: 0.00 | V8: 1,320,000.00 | W8: 0.00 | X8: 1,215,265.00 | Y8: 0.00 | Z8: 0.00 | AA8: 0.00 | AB8: 300,000.00 | AC8: 0.00 | AD8: 0.00 | AE8: 0.00 | AF8: 0.00
A9: 204 | B9: 02 | C9: 01 | D9: 行政运行（公安） | E9: 7,254,000.00 | F9: 287,000.00 | G9: 80,000.00 | H9: 120,000.00 | I9: 620,000.00 | J9: 348,300.00 | K9: 0.00 | L9: 500,000.00 | M9: 876,235.00 | N9: 300,000.00 | O9: 200,000.00 | P9: 135,000.00 | Q9: 80,000.00 | R9: 300,000.00 | S9: 192,200.00 | T9: 380,000.00 | U9: 0.00 | V9: 1,320,000.00 | W9: 0.00 | X9: 1,215,265.00 | Y9: 0.00 | Z9: 0.00 | AA9: 0.00 | AB9: 300,000.00 | AC9: 0.00 | AD9: 0.00 | AE9: 0.00 | AF9: 0.00
A10: 204 | E10: 1,725,000.00 | F10: 100,000.00 | G10: 20,000.00 | H10: 30,000.00 | I10: 300,000.00 | J10: 40,000.00 | K10: 0.00 | L10: 0.00 | M10: 50,000.00 | N10: 15,000.00 | O10: 20,000.00 | P10: 50,000.00 | Q10: 15,000.00 | R10: 170,000.00 | S10: 20,000.00 | T10: 165,000.00 | U10: 50,000.00 | V10: 385,000.00 | W10: 0.00 | X10: 67,500.00 | Y10: 5,000.00 | Z10: 172,500.00 | AA10: 0.00 | AB10: 0.00 | AC10: 0.00 | AD10: 0.00 | AE10: 50,000.00 | AF10: 0.00
B11: 02 | E11: 1,725,000.00 | F11: 100,000.00 | G11: 20,000.00 | H11: 30,000.00 | I11: 300,000.00 | J11: 40,000.00 | K11: 0.00 | L11: 0.00 | M11: 50,000.00 | N11: 15,000.00 | O11: 20,000.00 | P11: 50,000.00 | Q11: 15,000.00 | R11: 170,000.00 | S11: 20,000.00 | T11: 165,000.00 | U11: 50,000.00 | V11: 385,000.00 | W11: 0.00 | X11: 67,500.00 | Y11: 5,000.00 | Z11: 172,500.00 | AA11: 0.00 | AB11: 0.00 | AC11: 0.00 | AD11: 0.00 | AE11: 50,000.00 | AF11: 0.00
A12: 204 | B12: 02 | C12: 01 | D12: 行政运行（公安） | E12: 1,725,000.00 | F12: 100,000.00 | G12: 20,000.00 | H12: 30,000.00 | I12: 300,000.00 | J12: 40,000.00 | K12: 0.00 | L12: 0.00 | M12: 50,000.00 | N12: 15,000.00 | O12: 20,000.00 | P12: 50,000.00 | Q12: 15,000.00 | R12: 170,000.00 | S12: 20,000.00 | T12: 165,000.00 | U12: 50,000.00 | V12: 385,000.00 | W12: 0.00 | X12: 67,500.00 | Y12: 5,000.00 | Z12: 172,500.00 | AA12: 0.00 | AB12: 0.00 | AC12: 0.00 | AD12: 0.00 | AE12: 50,000.00 | AF12: 0.00

Sheet 基本-商品和服务支出（政府预算）
A2: 基本支出预算明细表-商品和服务支出（政府预算）
A3: 单位名称：临湘市公安局汇总 | S3: 单位：元
A4: 功能科目 | D4: 科目名称 | E4: 总计 | F4: 机关商品和服务支出 | Q4: 对事业单位经常性补助
A5: 类 | B5: 款 | C5: 项 | F5: 合计 | G5: 办公经费 | H5: 会议费 | I5: 培训费 | J5: 委托业务费 | K5: 公务接待费 | L5: 公务用车运行维护费 | M5: 维修（护）费 | N5: 其他商品和服务支出 | O5: 因公出国（境）费用 | P5: 专用材料购置费 | Q5: 合计 | R5: 商品和服务支出 | S5: 其他对事业单位补助
D6: 合计 | E6: =E7+E10 -> 8979000.00 | F6: =F7+F10 -> 8979000.00 | G6: 4359035.00 | H6: 185000.00 | I6: 95000.00 | J6: 267200.00 | K6: 470000.00 | L6: 1705000.00 | M6: 315000.00 | N6: 1282765.00 | O6: 0.00 | P6: 300000.00 | Q6: 0.00 | R6: 0.00 | S6: 0.00
A7: 204 | E7: 7254000.00 | F7: 7254000.00 | G7: 3411535.00 | H7: 135000.00 | I7: 80000.00 | J7: 192200.00 | K7: 300000.00 | L7: 1320000.00 | M7: 300000.00 | N7: 1215265.00 | O7: 0.00 | P7: 300,000.00 | Q7: 0.00 | R7: 0.00 | S7: 0.00
B8: 02 | E8: 7254000.00 | F8: 7254000.00 | G8: 3411535.00 | H8: 135000.00 | I8: 80000.00 | J8: 192200.00 | K8: 300000.00 | L8: 1320000.00 | M8: 300000.00 | N8: 1215265.00 | O8: 0.00 | P8: 300,000.00 | Q8: 0.00 | R8: 0.00 | S8: 0.00
A9: 204 | B9: 2 | C9: 01 | D9: 行政运行（公安） | E9: 7254000.00 | F9: 7254000.00 | G9: 3411535.00 | H9: 135000.00 | I9: 80000.00 | J9: 192200.00 | K9: 300000.00 | L9: 1320000.00 | M9: 300000.00 | N9: 1215265.00 | O9: 0.00 | P9: 300,000.00 | Q9: 0.00 | R9: 0.00 | S9: 0.00
A10: 204 | E10: 1725000.00 | F10: 1725000.00 | G10: 947500.00 | H10: 50000.00 | I10: 15000.00 | J10: 75000.00 | K10: 170000.00 | L10: 385000.00 | M10: 15000.00 | N10: 67500.00 | O10: 0.00 | P10: 0.00 | Q10: 0.00 | R10: 0.00 | S10: 0.00
B11: 02 | E11: 1725000.00 | F11: 1725000.00 | G11: 947500.00 | H11: 50000.00 | I11: 15000.00 | J11: 75000.00 | K11: 170000.00 | L11: 385000.00 | M11: 15000.00 | N11: 67500.00 | O11: 0.00 | P11: 0.00 | Q11: 0.00 | R11: 0.00 | S11: 0.00
A12: 204 | B12: 2 | C12: 01 | D12: 行政运行（公安） | E12: 1725000.00 | F12: 1725000.00 | G12: 947500.00 | H12: 50000.00 | I12: 15000.00 | J12: 75000.00 | K12: 170000.00 | L12: 385000.00 | M12: 15000.00 | N12: 67500.00 | O12: 0.00 | P12: 0.00 | Q12: 0.00 | R12: 0.00 | S12: 0.00

Sheet 基本-个人家庭
A2: 基本支出明细表-对个人和家庭的补助
A3: 单位名称：临湘市公安局汇总 | P3: 单位：元
A4: 功能科目 | D4: 科目名称 | E4: 总计 | F4: 离休费 | G4: 退休费 | H4: 退职(役)费 | I4: 抚恤金 | J4: 生活补助 | K4: 救济费 | L4: 医疗费 | M4: 助学金 | N4: 奖励金 | O4: 生产补贴 | P4: 其他对个人和家庭的补助
A5: 类 | B5: 款 | C5: 项
D6: 合计 | E6: 116,160.00 | F6: 0.00 | G6: 0.00 | H6: 0.00 | I6: 116,160.00 | J6: 0.00 | K6: 0.00 | L6: 0.00 | M6: 0.00 | N6: 0.00 | O6: 0.00 | P6: 0.00
B7: 02 | E7: 116,160.00 | F7: 0.00 | G7: 0.00 | H7: 0.00 | I7: 116,160.00 | J7: 0.00 | K7: 0.00 | L7: 0.00 | M7: 0.00 | N7: 0.00 | O7: 0.00 | P7: 0.00
A8: 204 | E8: 116,160.00 | F8: 0.00 | G8: 0.00 | H8: 0.00 | I8: 116,160.00 | J8: 0.00 | K8: 0.00 | L8: 0.00 | M8: 0.00 | N8: 0.00 | O8: 0.00 | P8: 0.00
A9: 204 | B9: 02 | C9: 01 | D9: 行政运行（公安） | E9: 116,160.00 | F9: 0.00 | G9: 0.00 | H9: 0.00 | I9: 116,160.00 | J9: 0.00 | K9: 0.00 | L9: 0.00 | M9: 0.00 | N9: 0.00 | O9: 0.00 | P9: 0.00

Sheet 基本-个人家庭（政府预算）
A2: 基本支出明细表-对个人和家庭的补助（政府预算）
A3: 单位名称：临湘市公安局汇总 | J3: 单位：元
A4: 功能科目 | D4: 科目名称 | E4: 总计 | F4: 社会福利和救济 | G4: 助学金 | H4: 个人农业生产补贴 | I4: 离退休 | J4: 其他对个人和家庭的补助
A5: 类 | B5: 款 | C5: 项
D6: 合计 | E6: 116,160.00 | F6: 116,160.00 | G6: 0.00 | H6: 0.00 | I6: 0.00 | J6: 0.00
A7: 204 | E7: 116,160.00 | F7: 116,160.00 | G7: 0.00 | H7: 0.00 | I7: 0.00 | J7: 0.00
B8: 02 | E8: 116,160.00 | F8: 116,160.00 | G8: 0.00 | H8: 0.00 | I8: 0.00 | J8: 0.00
A9: 204 | B9: 02 | C9: 01 | D9: 行政运行（公安） | E9: 116,160.00 | F9: 116,160.00 | G9: 0.00 | H9: 0.00 | I9: 0.00 | J9: 0.00

Sheet 财政拨款收支总表
A1: 2020年部门预算收支总表
A2: 填报单位：临湘市公安局汇总 | G2: 单位：元
A3: 收入 | C3: 支出（功能科目）
A4: 项目 | B4: 本年预算 | C4: 项目 | D4: 合计 | E4: 一般公共预算 | F4: 政府性基金预算 | G4: 国有资本经营预算
A5: 一般预算拨款（补助） | B5: 一般预算拨款 | C5: 201、一般公共服务支出 | D5: 0.00 | E5: 0.00 | F5: 0.00
A6: 经费拨款 | B6: 66,973,246.80 | C6: 202、外交支出 | D6: 0.00 | E6: 0.00 | F6: 0.00
A7: 纳入预算管理的非税收入拨款 | B7: 15,600,000.00 | C7: 203、国防支出 | D7: 0.00 | E7: 0.00 | F7: 0.00
A8: 纳入专户管理的非税收入拨款 | B8: 2,200,000.00 | C8: 204、公共安全支出 | D8: 80,193,258.52 | E8: 75193258.52 | F8: 0.00
A9: 政府性基金拨款 | B9: 0.00 | C9: 205、教育支出 | D9: 0.00 | E9: 0.00 | F9: 0.00
A10: 事业单位经营服务收入 | B10: 0.00 | C10: 206、科学技术支出 | D10: 0.00 | E10: 0.00 | F10: 0.00
A11: 上级补助收入 | B11: 2,800,000.00 | C11: 207、文化体育与传媒支出 | D11: 0.00 | E11: 0.00 | F11: 0.00
A12: 附属单位上缴收入 | B12: 0.00 | C12: 208、社会保障和就业支出 | D12: 4,217,136.16 | E12: 4217136.16 | F12: 0.00
A13: 其他收入 | B13: 0.00 | C13: 209、社保基金支出 | D13: 0.00 | E13: 0.00 | F13: 0.00
A14: 上年结转 | B14: 0.00 | C14: 210、医疗卫生与计划生育支出 | D14: 0.00 | E14: 0.00 | F14: 0.00
B15: 0.00 | C15: 211、节能环保支出 | D15: 0.00 | E15: 0.00 | F15: 0.00
B16: 0.00 | C16: 212、城乡社区支出 | D16: 0.00 | E16: 0.00 | F16: 0.00
B17: 0.00 | C17: 213、农林水支出 | D17: 0.00 | E17: 0.00 | F17: 0.00
B18: 0.00 | C18: 214、交通运输支出 | D18: 0.00 | E18: 0.00 | F18: 0.00
B19: 0.00 | C19: 215、资源勘探信息等支出 | D19: 0.00 | E19: 0.00 | F19: 0.00
B20: 0.00 | C20: 216、商业服务业等支出 | D20: 0.00 | E20: 0.00 | F20: 0.00
B21: 0.00 | C21: 217、金融支出 | D21: 0.00 | E21: 0.00 | F21: 0.00
B22: 0.00 | C22: 219、援助其他地区支出 | D22: 0.00 | E22: 0.00 | F22: 0.00
B23: 0.00 | C23: 220、国土海洋气象等支出 | D23: 0.00 | E23: 0.00 | F23: 0.00
B24: 0.00 | C24: 221、住房保障支出 | D24: 3,162,852.12 | E24: 3162852.12 | F24: 0.00
B25: 0.00 | C25: 222、粮油物资储备支出 | D25: 0.00 | E25: 0.00 | F25: 0.00
B26: 0.00 | C26: 223、国有资本经营预算支出 | D26: 0.00 | E26: 0.00 | F26: 0.00
B27: 0.00 | C27: 227、预备费 | D27: 0.00 | E27: 0.00 | F27: 0.00
B28: 0.00 | C28: 229、其他支出 | D28: 0.00 | E28: 0.00 | F28: 0.00
B29: 0.00 | C29: 230、转移性支出 | D29: 0.00 | E29: 0.00 | F29: 0.00
B30: 0.00 | C30: 231、债务还本支出 | D30: 0.00 | E30: 0.00 | F30: 0.00
B31: 0.00 | C31: 232、债务付息支出 | D31: 0.00 | E31: 0.00 | F31: 0.00
B32: 0.00 | C32: 233、债务发行费用支出 | D32: 0.00 | E32: 0.00 | F32: 0.00
B33: 0.00 | D33: 0.00 | E33: 0.00
A34: 本年收入合计 | B34: 87,573,246.80 | C34: 本年支出合计 | D34: 87,573,246.80 | E34: 82573246.80 | F34: 0.00

Sheet 一般预算支出表
A2: 一般公共预算支出情况表
A3: 单位名称：临湘市公安局汇总 | R3: 单位：元
A4: 功能科目 | E4: 总计 | F4: 基本支出 | J4: 项目支出
A5: 科目编码 | D5: 科目名称 | F5: 合计 | G5: 工资福利支出 | H5: 一般商品和服务支出 | I5: 对个人和家庭的补助 | J5: 合计 | K5: 商品和服务支出 | L5: 对个人和家庭的补助支出 | M5: 资本性支出（基建） | N5: 资本性支出（项目支出） | O5: 其他资本性支出 | P5: 对企事业单位的补贴（基建） | Q5: 对社会保障基金补助 | R5: 其他支出 | S5: 债务利息及费用支出
A6: 类 | B6: 款 | C6: 项
D7: 合计 | E7: =E8+E13+E16+E23 -> 82,573,246.80 | F7: =F8+F13+F16+F23 -> 55,523,246.80 | G7: 46,428,086.80 | H7: 8,979,000.00 | I7: 116,160.00 | J7: 27,050,000.00 | K7: 16,354,000.00 | L7: 1,600,000.00 | M7: 7,035,000.00 | N7: 1,915,000.00 | O7: 0.00 | P7: 0.00 | Q7: 0.00 | R7: 146,000.00 | S7: 0.00
B8: 02 | E8: 61,536,558.21 | F8: 41,292,558.21 | G8: 33,922,398.21 | H8: 7,254,000.00 | I8: 116,160.00 | J8: 20,244,000.00 | K8: 11,674,000.00 | L8: 1,600,000.00 | M8: 6,970,000.00 | N8: 0.00 | O8: 0.00 | P8: 0.00 | Q8: 0.00 | R8: 0.00 | S8: 0.00
A9: 204 | E9: 59,039,771.73 | F9: 38,795,771.73 | G9: 31,425,611.73 | H9: 7,254,000.00 | I9: 116,160.00 | J9: 20,244,000.00 | K9: 11,674,000.00 | L9: 1,600,000.00 | M9: 6,970,000.00 | N9: 0.00 | O9: 0.00 | P9: 0.00 | Q9: 0.00 | R9: 0.00 | S9: 0.00
A10: 204 | B10: 02 | C10: 01 | D10: 行政运行（公安） | E10: 59,039,771.73 | F10: 38,795,771.73 | G10: 31,425,611.73 | H10: 7,254,000.00 | I10: 116,160.00 | J10: 20,244,000.00 | K10: 11,674,000.00 | L10: 1,600,000.00 | M10: 6,970,000.00 | N10: 0.00 | O10: 0.00 | P10: 0.00 | Q10: 0.00 | R10: 0.00 | S10: 0.00
A11: 221 | E11: 2,496,786.48 | F11: 2,496,786.48 | G11: 2,496,786.48 | H11: 0.00 | I11: 0.00 | J11: 0.00 | K11: 0.00 | L11: 0.00 | M11: 0.00 | N11: 0.00 | O11: 0.00 | P11: 0.00 | Q11: 0.00 | R11: 0.00 | S11: 0.00
A12: 221 | B12: 02 | C12: 01 | D12: 住房公积金 | E12: 2,496,786.48 | F12: 2,496,786.48 | G12: 2,496,786.48 | H12: 0.00 | I12: 0.00 | J12: 0.00 | K12: 0.00 | L12: 0.00 | M12: 0.00 | N12: 0.00 | O12: 0.00 | P12: 0.00 | Q12: 0.00 | R12: 0.00 | S12: 0.00
B13: 05 | E13: 3,329,048.64 | F13: 3,329,048.64 | G13: 3,329,048.64 | H13: 0.00 | I13: 0.00 | J13: 0.00 | K13: 0.00 | L13: 0.00 | M13: 0.00 | N13: 0.00 | O13: 0.00 | P13: 0.00 | Q13: 0.00 | R13: 0.00 | S13: 0.00
A14: 208 | E14: 3,329,048.64 | F14: 3,329,048.64 | G14: 3,329,048.64 | H14: 0.00 | I14: 0.00 | J14: 0.00 | K14: 0.00 | L14: 0.00 | M14: 0.00 | N14: 0.00 | O14: 0.00 | P14: 0.00 | Q14: 0.00 | R14: 0.00 | S14: 0.00
A15: 208 | B15: 05 | C15: 05 | D15: 机关事业单位基本养老保险缴费支出 | E15: 3,329,048.64 | F15: 3,329,048.64 | G15: 3,329,048.64 | H15: 0.00 | I15: 0.00 | J15: 0.00 | K15: 0.00 | L15: 0.00 | M15: 0.00 | N15: 0.00 | O15: 0.00 | P15: 0.00 | Q15: 0.00 | R15: 0.00 | S15: 0.00
B16: 02 | E16: 16,819,552.43 | F16: 10,013,552.43 | G16: 8,288,552.43 | H16: 1,725,000.00 | I16: 0.00 | J16: 6,806,000.00 | K16: 4,680,000.00 | L16: 0.00 | M16: 65,000.00 | N16: 1,915,000.00 | O16: 0.00 | P16: 0.00 | Q16: 0.00 | R16: 146,000.00 | S16: 0.00
A17: 204 | E17: 16,153,486.79 | F17: 9,347,486.79 | G17: 7,622,486.79 | H17: 1,725,000.00 | I17: 0.00 | J17: 6,806,000.00 | K17: 4,680,000.00 | L17: 0.00 | M17: 65,000.00 | N17: 1,915,000.00 | O17: 0.00 | P17: 0.00 | Q17: 0.00 | R17: 146,000.00 | S17: 0.00
A18: 204 | B18: 02 | C18: 01 | D18: 行政运行（公安） | E18: 1,725,000.00 | F18: 1,725,000.00 | G18: 0.00 | H18: 1,725,000.00 | I18: 0.00 | J18: 0.00 | K18: 0.00 | L18: 0.00 | M18: 0.00 | N18: 0.00 | O18: 0.00 | P18: 0.00 | Q18: 0.00 | R18: 0.00 | S18: 0.00
A19: 204 | B19: 02 | C19: 02 | D19: 一般行政管理事务（公安） | E19: 14,258,486.79 | F19: 7,622,486.79 | G19: 7,622,486.79 | H19: 0.00 | I19: 0.00 | J19: 6,636,000.00 | K19: 4,590,000.00 | L19: 0.00 | M19: 0.00 | N19: 1,900,000.00 | O19: 0.00 | P19: 0.00 | Q19: 0.00 | R19: 146,000.00 | S19: 0.00
A20: 204 | B20: 02 | C20: 99 | D20: 其他公安支出 | E20: 170,000.00 | F20: 0.00 | G20: 0.00 | H20: 0.00 | I20: 0.00 | J20: 170,000.00 | K20: 90,000.00 | L20: 0.00 | M20: 65,000.00 | N20: 15,000.00 | O20: 0.00 | P20: 0.00 | Q20: 0.00 | R20: 0.00 | S20: 0.00
A21: 221 | E21: 666,065.64 | F21: 666,065.64 | G21: 666,065.64 | H21: 0.00 | I21: 0.00 | J21: 0.00 | K21: 0.00 | L21: 0.00 | M21: 0.00 | N21: 0.00 | O21: 0.00 | P21: 0.00 | Q21: 0.00 | R21: 0.00 | S21: 0.00
A22: 221 | B22: 02 | C22: 01 | D22: 住房公积金 | E22: 666,065.64 | F22: 666,065.64 | G22: 666,065.64 | H22: 0.00 | I22: 0.00 | J22: 0.00 | K22: 0.00 | L22: 0.00 | M22: 0.00 | N22: 0.00 | O22: 0.00 | P22: 0.00 | Q22: 0.00 | R22: 0.00 | S22: 0.00
B23: 05 | E23: 888,087.52 | F23: 888,087.52 | G23: 888,087.52 | H23: 0.00 | I23: 0.00 | J23: 0.00 | K23: 0.00 | L23: 0.00 | M23: 0.00 | N23: 0.00 | O23: 0.00 | P23: 0.00 | Q23: 0.00 | R23: 0.00 | S23: 0.00
A24: 208 | E24: 888,087.52 | F24: 888,087.52 | G24: 888,087.52 | H24: 0.00 | I24: 0.00 | J24: 0.00 | K24: 0.00 | L24: 0.00 | M24: 0.00 | N24: 0.00 | O24: 0.00 | P24: 0.00 | Q24: 0.00 | R24: 0.00 | S24: 0.00
A25: 208 | B25: 05 | C25: 05 | D25: 机关事业单位基本养老保险缴费支出 | E25: 888,087.52 | F25: 888,087.52 | G25: 888,087.52 | H25: 0.00 | I25: 0.00 | J25: 0.00 | K25: 0.00 | L25: 0.00 | M25: 0.00 | N25: 0.00 | O25: 0.00 | P25: 0.00 | Q25: 0.00 | R25: 0.00 | S25: 0.00

Sheet 一般预算基本支出表
A2: 一般公共预算基本支出情况表
A3: 单位名称：临湘市公安局汇总 | I3: 单位：元
A4: 功能科目 | E4: 总计 | F4: 基本支出
A5: 科目编码 | D5: 科目名称 | F5: 合计 | G5: 工资福利支出 | H5: 一般商品和服务支出 | I5: 对个人和家庭的补助
A6: 类 | B6: 款 | C6: 项
D7: 合计 | E7: =E8+E13+E16+E22 -> 55,523,246.80 | F7: =F8+F13+F16+F22 -> 55,523,246.80 | G7: =G8+G13+G16+G22 -> 46,428,086.80 | H7: =H8+H13+H16+H22 -> 8,979,000.00 | I7: =I8+I13+I16+I22 -> 116,160.00
B8: 02 | E8: 41,292,558.21 | F8: 41,292,558.21 | G8: 33,922,398.21 | H8: 7,254,000.00 | I8: 116,160.00
A9: 204 | E9: 38,795,771.73 | F9: 38,795,771.73 | G9: 31,425,611.73 | H9: 7,254,000.00 | I9: 116,160.00
A10: 204 | B10: 02 | C10: 01 | D10: 行政运行（公安） | E10: 38,795,771.73 | F10: 38,795,771.73 | G10: 31,425,611.73 | H10: 7,254,000.00 | I10: 116,160.00
A11: 221 | E11: 2,496,786.48 | F11: 2,496,786.48 | G11: 2,496,786.48 | H11: 0.00 | I11: 0.00
A12: 221 | B12: 02 | C12: 01 | D12: 住房公积金 | E12: 2,496,786.48 | F12: 2,496,786.48 | G12: 2,496,786.48 | H12: 0.00 | I12: 0.00
B13: 05 | E13: 3,329,048.64 | F13: 3,329,048.64 | G13: 3,329,048.64 | H13: 0.00 | I13: 0.00
A14: 208 | E14: 3,329,048.64 | F14: 3,329,048.64 | G14: 3,329,048.64 | H14: 0.00 | I14: 0.00
A15: 208 | B15: 05 | C15: 05 | D15: 机关事业单位基本养老保险缴费支出 | E15: 3,329,048.64 | F15: 3,329,048.64 | G15: 3,329,048.64 | H15: 0.00 | I15: 0.00
B16: 02 | E16: 10,013,552.43 | F16: 10,013,552.43 | G16: 8,288,552.43 | H16: 1,725,000.00 | I16: 0.00
A17: 204 | E17: 9,347,486.79 | F17: 9,347,486.79 | G17: 7,622,486.79 | H17: 1,725,000.00 | I17: 0.00
A18: 204 | B18: 02 | C18: 01 | D18: 行政运行（公安） | E18: 1,725,000.00 | F18: 1,725,000.00 | G18: 0.00 | H18: 1,725,000.00 | I18: 0.00
A19: 204 | B19: 02 | C19: 02 | D19: 一般行政管理事务（公安） | E19: 7,622,486.79 | F19: 7,622,486.79 | G19: 7,622,486.79 | H19: 0.00 | I19: 0.00
A20: 221 | E20: 666,065.64 | F20: 666,065.64 | G20: 666,065.64 | H20: 0.00 | I20: 0.00
A21: 221 | B21: 02 | C21: 01 | D21: 住房公积金 | E21: 666,065.64 | F21: 666,065.64 | G21: 666,065.64 | H21: 0.00 | I21: 0.00
B22: 05 | E22: 888,087.52 | F22: 888,087.52 | G22: 888,087.52 | H22: 0.00 | I22: 0.00
A23: 208 | E23: 888,087.52 | F23: 888,087.52 | G23: 888,087.52 | H23: 0.00 | I23: 0.00
A24: 208 | B24: 05 | C24: 05 | D24: 机关事业单位基本养老保险缴费支出 | E24: 888,087.52 | F24: 888,087.52 | G24: 888,087.52 | H24: 0.00 | I24: 0.00

Sheet 一般-工资福利
A2: 一般公共预算基本支出预算明细表-工资福利支出
A3: 单位名称：临湘市公安局汇总 | V3: 单位：元
A4: 功能科目 | D4: 科目名称 | E4: 总计 | F4: 工资性支出 | K4: 社会保障缴费 | Q4: 住房公积金 | R4: 伙食补贴支出 | U4: 附加性支出%6 | V4: 其他工资福利支出
A5: 类 | B5: 款 | C5: 项 | F5: 合计 | G5: 基本工资 | H5: 津贴补贴 | I5: 奖金 | J5: 绩效工资 | K5: 合计 | L5: 职工基本医疗保险 | M5: 公务员医疗补助缴费 | N5: 其他社会保障缴费 | O5: 机关事业单位基本养老保险缴费 | P5: 职业年金 | R5: 合计 | S5: 医疗费 | T5: 伙食补助费
D6: 合计 | E6: =E7+E12+E15+E20 -> 46428086.80 | F6: =F7+F12+F15+F20 -> 28828861.00 | G6: 17154444.00 | H6: 10244880.00 | I6: 1429537.00 | J6: 0.00 | K6: 6319787.04 | L6: 1844997.07 | M6: 0.00 | N6: 257653.81 | O6: 4217136.16 | P6: 0.00 | Q6: 3162852.12 | R6: 0.00 | S6: 0.00 | T6: 0.00 | U6: 1029266.64 | V6: 7087320.00
B7: 02 | E7: 33922398.21 | F7: 23278314.00 | G7: 13461192.00 | H7: 8695356.00 | I7: 1121766.00 | J7: 0.00 | K7: 1661826.21 | L7: 1456458.78 | M7: 0.00 | N7: 205367.43 | O7: 0.00 | P7: 0.00 | Q7: 2496786.48 | R7: 0.00 | S7: 0.00 | T7: 0.00 | U7: 807,671.52 | V7: 5677800.00
A8: 204 | E8: 31425611.73 | F8: 23278314.00 | G8: 13461192.00 | H8: 8695356.00 | I8: 1121766.00 | J8: 0.00 | K8: 1661826.21 | L8: 1456458.78 | M8: 0.00 | N8: 205367.43 | O8: 0.00 | P8: 0.00 | Q8: 0.00 | R8: 0.00 | S8: 0.00 | T8: 0.00 | U8: 807,671.52 | V8: 5677800.00
A9: 204 | B9: 02 | C9: 01 | D9: 行政运行（公安） | E9: 31425611.73 | F9: 23278314.00 | G9: 13461192.00 | H9: 8695356.00 | I9: 1121766.00 | J9: 0.00 | K9: 1661826.21 | L9: 1456458.78 | M9: 0.00 | N9: 205367.43 | O9: 0.00 | P9: 0.00 | Q9: 0.00 | R9: 0.00 | S9: 0.00 | T9: 0.00 | U9: 807,671.52 | V9: 5677800.00
A10: 221 | E10: 2496786.48 | F10: 0.00 | G10: 0.00 | H10: 0.00 | I10: 0.00 | J10: 0.00 | K10: 0.00 | L10: 0.00 | M10: 0.00 | N10: 0.00 | O10: 0.00 | P10: 0.00 | Q10: 2496786.48 | R10: 0.00 | S10: 0.00 | T10: 0.00 | U10: 0.00 | V10: 0.00
A11: 221 | B11: 02 | C11: 01 | D11: 住房公积金 | E11: 2496786.48 | F11: 0.00 | G11: 0.00 | H11: 0.00 | I11: 0.00 | J11: 0.00 | K11: 0.00 | L11: 0.00 | M11: 0.00 | N11: 0.00 | O11: 0.00 | P11: 0.00 | Q11: 2496786.48 | R11: 0.00 | S11: 0.00 | T11: 0.00 | U11: 0.00 | V11: 0.00
B12: 05 | E12: 3329048.64 | F12: 0.00 | G12: 0.00 | H12: 0.00 | I12: 0.00 | J12: 0.00 | K12: 3329048.64 | L12: 0.00 | M12: 0.00 | N12: 0.00 | O12: 3329048.64 | P12: 0.00 | Q12: 0.00 | R12: 0.00 | S12: 0.00 | T12: 0.00 | U12: 0.00 | V12: 0.00
A13: 208 | E13: 3329048.64 | F13: 0.00 | G13: 0.00 | H13: 0.00 | I13: 0.00 | J13: 0.00 | K13: 3329048.64 | L13: 0.00 | M13: 0.00 | N13: 0.00 | O13: 3329048.64 | P13: 0.00 | Q13: 0.00 | R13: 0.00 | S13: 0.00 | T13: 0.00 | U13: 0.00 | V13: 0.00
A14: 208 | B14: 05 | C14: 05 | D14: 机关事业单位基本养老保险缴费支出 | E14: 3329048.64 | F14: 0.00 | G14: 0.00 | H14: 0.00 | I14: 0.00 | J14: 0.00 | K14: 3329048.64 | L14: 0.00 | M14: 0.00 | N14: 0.00 | O14: 3329048.64 | P14: 0.00 | Q14: 0.00 | R14: 0.00 | S14: 0.00 | T14: 0.00 | U14: 0.00 | V14: 0.00
B15: 02 | E15: 8288552.43 | F15: 5550547.00 | G15: 3693252.00 | H15: 1549524.00 | I15: 307771.00 | J15: 0.00 | K15: 440824.67 | L15: 388538.29 | M15: 0.00 | N15: 52286.38 | O15: 0.00 | P15: 0.00 | Q15: 666065.64 | R15: 0.00 | S15: 0.00 | T15: 0.00 | U15: 221,595.12 | V15: 1409520.00
A16: 204 | E16: 7622486.79 | F16: 5550547.00 | G16: 3693252.00 | H16: 1549524.00 | I16: 307771.00 | J16: 0.00 | K16: 440824.67 | L16: 388538.29 | M16: 0.00 | N16: 52286.38 | O16: 0.00 | P16: 0.00 | Q16: 0.00 | R16: 0.00 | S16: 0.00 | T16: 0.00 | U16: 221,595.12 | V16: 1409520.00
A17: 204 | B17: 02 | C17: 02 | D17: 一般行政管理事务（公安） | E17: 7622486.79 | F17: 5550547.00 | G17: 3693252.00 | H17: 1549524.00 | I17: 307771.00 | J17: 0.00 | K17: 440824.67 | L17: 388538.29 | M17: 0.00 | N17: 52286.38 | O17: 0.00 | P17: 0.00 | Q17: 0.00 | R17: 0.00 | S17: 0.00 | T17: 0.00 | U17: 221,595.12 | V17: 1409520.00
A18: 221 | E18: 666065.64 | F18: 0.00 | G18: 0.00 | H18: 0.00 | I18: 0.00 | J18: 0.00 | K18: 0.00 | L18: 0.00 | M18: 0.00 | N18: 0.00 | O18: 0.00 | P18: 0.00 | Q18: 666065.64 | R18: 0.00 | S18: 0.00 | T18: 0.00 | U18: 0.00 | V18: 0.00
A19: 221 | B19: 02 | C19: 01 | D19: 住房公积金 | E19: 666065.64 | F19: 0.00 | G19: 0.00 | H19: 0.00 | I19: 0.00 | J19: 0.00 | K19: 0.00 | L19: 0.00 | M19: 0.00 | N19: 0.00 | O19: 0.00 | P19: 0.00 | Q19: 666065.64 | R19: 0.00 | S19: 0.00 | T19: 0.00 | U19: 0.00 | V19: 0.00
B20: 05 | E20: 888087.52 | F20: 0.00 | G20: 0.00 | H20: 0.00 | I20: 0.00 | J20: 0.00 | K20: 888087.52 | L20: 0.00 | M20: 0.00 | N20: 0.00 | O20: 888087.52 | P20: 0.00 | Q20: 0.00 | R20: 0.00 | S20: 0.00 | T20: 0.00 | U20: 0.00 | V20: 0.00
A21: 208 | E21: 888087.52 | F21: 0.00 | G21: 0.00 | H21: 0.00 | I21: 0.00 | J21: 0.00 | K21: 888087.52 | L21: 0.00 | M21: 0.00 | N21: 0.00 | O21: 888087.52 | P21: 0.00 | Q21: 0.00 | R21: 0.00 | S21: 0.00 | T21: 0.00 | U21: 0.00 | V21: 0.00
A22: 208 | B22: 05 | C22: 05 | D22: 机关事业单位基本养老保险缴费支出 | E22: 888087.52 | F22: 0.00 | G22: 0.00 | H22: 0.00 | I22: 0.00 | J22: 0.00 | K22: 888087.52 | L22: 0.00 | M22: 0.00 | N22: 0.00 | O22: 888087.52 | P22: 0.00 | Q22: 0.00 | R22: 0.00 | S22: 0.00 | T22: 0.00 | U22: 0.00 | V22: 0.00

Sheet 一般-工资福利（政府预算）
A2: 一般公共预算基本支出预算明细表-工资福利支出(按政府预算经济分类)
A3: 单位名称：临湘市公安局汇总 | M3: 单位：元
A4: 功能科目 | D4: 科目名称 | E4: 总计 | F4: 机关工资福利支出 | K4: 对事业单位经常性补助
A5: 类 | B5: 款 | C5: 项 | F5: 合计 | G5: 工资奖金津补贴 | H5: 社会保障缴费 | I5: 住房公积金 | J5: 其他工资福利支出 | K5: 合计 | L5: 工资福利支出 | M5: 其他对事业单位补助
D6: 合计 | E6: 37251446.85 | F6: 37251446.85 | G6: 23278314.00 | H6: 4990874.85 | I6: 2496786.48 | J6: 6485471.52 | K6: 0.00 | L6: 0.00 | M6: 0.00
B7: 02 | E7: 33922398.21 | F7: 33922398.21 | G7: 23278314.00 | H7: 1661826.21 | I7: 2496786.48 | J7: 6485471.52 | K7: 0.00 | L7: 0.00 | M7: 0.00
A8: 204 | E8: 31425611.73 | F8: 31425611.73 | G8: 23278314.00 | H8: 1661826.21 | I8: 0.00 | J8: 6485471.52 | K8: 0.00 | L8: 0.00 | M8: 0.00
A9: 204 | B9: 02 | C9: 01 | D9: 行政运行（公安） | E9: 31425611.73 | F9: 31425611.73 | G9: 23278314.00 | H9: 1661826.21 | I9: 0.00 | J9: 6485471.52 | K9: 0.00 | L9: 0.00 | M9: 0.00
A10: 221 | E10: 2496786.48 | F10: 2496786.48 | G10: 0.00 | H10: 0.00 | I10: 2496786.48 | J10: 0.00 | K10: 0.00 | L10: 0.00 | M10: 0.00
A11: 221 | B11: 02 | C11: 01 | D11: 住房公积金 | E11: 2496786.48 | F11: 2496786.48 | G11: 0.00 | H11: 0.00 | I11: 2496786.48 | J11: 0.00 | K11: 0.00 | L11: 0.00 | M11: 0.00
B12: 05 | E12: 3329048.64 | F12: 3329048.64 | G12: 0.00 | H12: 3329048.64 | I12: 0.00 | J12: 0.00 | K12: 0.00 | L12: 0.00 | M12: 0.00
A13: 208 | E13: 3329048.64 | F13: 3329048.64 | G13: 0.00 | H13: 3329048.64 | I13: 0.00 | J13: 0.00 | K13: 0.00 | L13: 0.00 | M13: 0.00
A14: 208 | B14: 05 | C14: 05 | D14: 机关事业单位基本养老保险缴费支出 | E14: 3329048.64 | F14: 3329048.64 | G14: 0.00 | H14: 3329048.64 | I14: 0.00 | J14: 0.00 | K14: 0.00 | L14: 0.00 | M14: 0.00

Sheet 一般-商品和服务支出
A2: 一般公共预算基本预算支出明细表-商品和服务支出
A3: 单位名称:临湘市公安局汇总 | AF3: 单位：元
A4: 功能科目 | D4: 科目名称 | E4: 总计 | F4: 办公费 | G4: 日常印刷费 | H4: 水费 | I4: 电费 | J4: 邮电费 | K4: 取暖费 | L4: 物业管理费 | M4: 因公出国（境）费 | N4: 差旅费 | O4: 日常维修(护)费 | P4: 租赁费 | Q4: 会议费 | R4: 培训费 | S4: 公务接待费 | T4: 劳务费 | U4: 工会经费 | V4: 福利费 | W4: 公务用车运行维护费 | X4: 其他交通费 | Y4: 其他一般商品和服务支出 | Z4: 税金及附加费用 | AA4: 业务委托费 | AB4: 专用燃料费 | AC4: 被装购置费 | AD4: 专用材料费 | AE4: 手续费 | AF4: 咨询费
A5: 类 | B5: 款 | C5: 项
D6: 合计 | E6: =E7+E10 -> 25,333,000.00 | F6: =F7+F10 -> 977,000.00 | G6: 250,000.00 | H6: 420,000.00 | I6: 1,380,000.00 | J6: 678,300.00 | K6: 0.00 | L6: 500,000.00 | M6: 0.00 | N6: 1,416,235.00 | O6: 1,685,000.00 | P6: 320,000.00 | Q6: 185,000.00 | R6: 395,000.00 | S6: 470,000.00 | T6: 4,446,200.00 | U6: 805,000.00 | V6: 190,000.00 | W6: 1,705,000.00 | X6: 0.00 | Y6: 6,232,765.00 | Z6: 0.00 | AA6: 1,750,000.00 | AB6: 0.00 | AC6: 400,000.00 | AD6: 950,000.00 | AE6: 172,500.00 | AF6: 5,000.00
B7: 02 | E7: 18,928,000.00 | F7: 487,000.00 | G7: 130,000.00 | H7: 150,000.00 | I7: 710,000.00 | J7: 358,300.00 | K7: 0.00 | L7: 500,000.00 | M7: 0.00 | N7: 1,126,235.00 | O7: 1,350,000.00 | P7: 200,000.00 | Q7: 135,000.00 | R7: 80,000.00 | S7: 300,000.00 | T7: 4,326,200.00 | U7: 380,000.00 | V7: 0.00 | W7: 1,320,000.00 | X7: 0.00 | Y7: 4,945,265.00 | Z7: 0.0000 | AA7: 1,600,000.0000 | AB7: 0.0000 | AC7: 0.0000 | AD7: 830,000.0000 | AE7: 0.0000 | AF7: 0.0000
A8: 204 | E8: 18,928,000.00 | F8: 487,000.00 | G8: 130,000.00 | H8: 150,000.00 | I8: 710,000.00 | J8: 358,300.00 | K8: 0.00 | L8: 500,000.00 | M8: 0.00 | N8: 1,126,235.00 | O8: 1,350,000.00 | P8: 200,000.00 | Q8: 135,000.00 | R8: 80,000.00 | S8: 300,000.00 | T8: 4,326,200.00 | U8: 380,000.00 | V8: 0.00 | W8: 1,320,000.00 | X8: 0.00 | Y8: 4,945,265.00 | Z8: 0.0000 | AA8: 1,600,000.0000 | AB8: 0.0000 | AC8: 0.0000 | AD8: 830,000.0000 | AE8: 0.0000 | AF8: 0.0000
A9: 204 | B9: 02 | C9: 01 | D9: 行政运行（公安） | E9: 18,928,000.00 | F9: 487,000.00 | G9: 130,000.00 | H9: 150,000.00 | I9: 710,000.00 | J9: 358,300.00 | K9: 0.00 | L9: 500,000.00 | M9: 0.00 | N9: 1,126,235.00 | O9: 1,350,000.00 | P9: 200,000.00 | Q9: 135,000.00 | R9: 80,000.00 | S9: 300,000.00 | T9: 4,326,200.00 | U9: 380,000.00 | V9: 0.00 | W9: 1,320,000.00 | X9: 0.00 | Y9: 4,945,265.00 | Z9: 0.0000 | AA9: 1,600,000.0000 | AB9: 0.0000 | AC9: 0.0000 | AD9: 830,000.0000 | AE9: 0.0000 | AF9: 0.0000
B10: 02 | E10: 6,405,000.00 | F10: 490,000.00 | G10: 120,000.00 | H10: 270,000.00 | I10: 670,000.00 | J10: 320,000.00 | K10: 0.00 | L10: 0.00 | M10: 0.00 | N10: 290,000.00 | O10: 335,000.00 | P10: 120,000.00 | Q10: 50,000.00 | R10: 315,000.00 | S10: 170,000.00 | T10: 120,000.00 | U10: 425,000.00 | V10: 190,000.00 | W10: 385,000.00 | X10: 0.00 | Y10: 1,287,500.00 | Z10: 0.0000 | AA10: 150,000.0000 | AB10: 0.0000 | AC10: 400,000.0000 | AD10: 120,000.0000 | AE10: 172,500.0000 | AF10: 5,000.0000
A11: 204 | E11: 6,405,000.00 | F11: 490,000.00 | G11: 120,000.00 | H11: 270,000.00 | I11: 670,000.00 | J11: 320,000.00 | K11: 0.00 | L11: 0.00 | M11: 0.00 | N11: 290,000.00 | O11: 335,000.00 | P11: 120,000.00 | Q11: 50,000.00 | R11: 315,000.00 | S11: 170,000.00 | T11: 120,000.00 | U11: 425,000.00 | V11: 190,000.00 | W11: 385,000.00 | X11: 0.00 | Y11: 1,287,500.00 | Z11: 0.0000 | AA11: 150,000.0000 | AB11: 0.0000 | AC11: 400,000.0000 | AD11: 120,000.0000 | AE11: 172,500.0000 | AF11: 5,000.0000
A12: 204 | B12: 02 | C12: 01 | D12: 行政运行（公安） | E12: 1,725,000.00 | F12: 100,000.00 | G12: 20,000.00 | H12: 30,000.00 | I12: 300,000.00 | J12: 40,000.00 | K12: 0.00 | L12: 0.00 | M12: 0.00 | N12: 50,000.00 | O12: 15,000.00 | P12: 20,000.00 | Q12: 50,000.00 | R12: 15,000.00 | S12: 170,000.00 | T12: 20,000.00 | U12: 165,000.00 | V12: 50,000.00 | W12: 385,000.00 | X12: 0.00 | Y12: 67,500.00 | Z12: 0.0000 | AA12: 50,000.0000 | AB12: 0.0000 | AC12: 0.0000 | AD12: 0.0000 | AE12: 172,500.0000 | AF12: 5,000.0000
A13: 204 | B13: 02 | C13: 02 | D13: 一般行政管理事务（公安） | E13: 4,590,000.00 | F13: 370,000.00 | G13: 100,000.00 | H13: 240,000.00 | I13: 340,000.00 | J13: 280,000.00 | K13: 0.00 | L13: 0.00 | M13: 0.00 | N13: 240,000.00 | O13: 300,000.00 | P13: 100,000.00 | Q13: 0.00 | R13: 300,000.00 | S13: 0.00 | T13: 100,000.00 | U13: 260,000.00 | V13: 140,000.00 | W13: 0.00 | X13: 0.00 | Y13: 1,220,000.00 | Z13: 0.0000 | AA13: 100,000.0000 | AB13: 0.0000 | AC13: 400,000.0000 | AD13: 100,000.0000 | AE13: 0.0000 | AF13: 0.0000
A14: 204 | B14: 02 | C14: 99 | D14: 其他公安支出 | E14: 90,000.00 | F14: 20,000.00 | G14: 0.00 | H14: 0.00 | I14: 30,000.00 | J14: 0.00 | K14: 0.00 | L14: 0.00 | M14: 0.00 | N14: 0.00 | O14: 20,000.00 | P14: 0.00 | Q14: 0.00 | R14: 0.00 | S14: 0.00 | T14: 0.00 | U14: 0.00 | V14: 0.00 | W14: 0.00 | X14: 0.00 | Y14: 0.00 | Z14: 0.0000 | AA14: 0.0000 | AB14: 0.0000 | AC14: 0.0000 | AD14: 20,000.0000 | AE14: 0.0000 | AF14: 0.0000

Sheet 一般-商品和服务支出（政府预算）
A2: 一般公共预算支出预算明细表-商品和服务支出（政府预算）
A3: 单位名称:临湘市公安局汇总 | S3: 单位：元
A4: 功能科目 | D4: 科目名称 | E4: 总计 | F4: 机关商品和服务支出 | Q4: 对事业单位经常性补助
A5: 类 | B5: 款 | C5: 项 | F5: 合计 | G5: 办公经费 | H5: 会议费 | I5: 培训费 | J5: 委托业务费 | K5: 公务接待费 | L5: 公务用车运行维护费 | M5: 维修（护）费 | N5: 其他商品和服务支出 | O5: 因公出国（境）费用 | P5: 专用材料购置费 | Q5: 合计 | R5: 商品和服务支出 | S5: 其他对事业单位补助
D6: 合计 | E6: =E7+E10 -> 25,333,000.00 | F6: =F7+F10 -> 25,333,000.00 | G6: 7,109,035.00 | H6: 185,000.00 | I6: 395,000.00 | J6: 6,201,200.00 | K6: 470,000.00 | L6: 1,705,000.00 | M6: 1,685,000.00 | N6: 6,232,765.00 | O6: 0.00 | P6: 1,350,000.00 | Q6: 0.00 | R6: 0.00 | S6: 0.00
B7: 02 | E7: 18,928,000.00 | F7: 18,928,000.00 | G7: 4,041,535.00 | H7: 135,000.00 | I7: 80,000.00 | J7: 5,926,200.00 | K7: 300,000.00 | L7: 1,320,000.00 | M7: 1,350,000.00 | N7: 4,945,265.00 | O7: 0.0000 | P7: 830,000.0000 | Q7: 0.00 | R7: 0.00 | S7: 0.00
A8: 204 | E8: 18,928,000.00 | F8: 18,928,000.00 | G8: 4,041,535.00 | H8: 135,000.00 | I8: 80,000.00 | J8: 5,926,200.00 | K8: 300,000.00 | L8: 1,320,000.00 | M8: 1,350,000.00 | N8: 4,945,265.00 | O8: 0.0000 | P8: 830,000.0000 | Q8: 0.00 | R8: 0.00 | S8: 0.00
A9: 204 | B9: 02 | C9: 01 | D9: 行政运行（公安） | E9: 18,928,000.00 | F9: 18,928,000.00 | G9: 4,041,535.00 | H9: 135,000.00 | I9: 80,000.00 | J9: 5,926,200.00 | K9: 300,000.00 | L9: 1,320,000.00 | M9: 1,350,000.00 | N9: 4,945,265.00 | O9: 0.0000 | P9: 830,000.0000 | Q9: 0.00 | R9: 0.00 | S9: 0.00
B10: 02 | E10: 6,405,000.00 | F10: 6,405,000.00 | G10: 3,067,500.00 | H10: 50,000.00 | I10: 315,000.00 | J10: 275,000.00 | K10: 170,000.00 | L10: 385,000.00 | M10: 335,000.00 | N10: 1,287,500.00 | O10: 0.0000 | P10: 520,000.0000 | Q10: 0.00 | R10: 0.00 | S10: 0.00
A11: 204 | E11: 6,405,000.00 | F11: 6,405,000.00 | G11: 3,067,500.00 | H11: 50,000.00 | I11: 315,000.00 | J11: 275,000.00 | K11: 170,000.00 | L11: 385,000.00 | M11: 335,000.00 | N11: 1,287,500.00 | O11: 0.0000 | P11: 520,000.0000 | Q11: 0.00 | R11: 0.00 | S11: 0.00
A12: 204 | B12: 02 | C12: 01 | D12: 行政运行（公安） | E12: 1,725,000.00 | F12: 1,725,000.00 | G12: 947,500.00 | H12: 50,000.00 | I12: 15,000.00 | J12: 75,000.00 | K12: 170,000.00 | L12: 385,000.00 | M12: 15,000.00 | N12: 67,500.00 | O12: 0.0000 | P12: 0.0000 | Q12: 0.00 | R12: 0.00 | S12: 0.00
A13: 204 | B13: 02 | C13: 02 | D13: 一般行政管理事务（公安） | E13: 4,590,000.00 | F13: 4,590,000.00 | G13: 2,070,000.00 | H13: 0.00 | I13: 300,000.00 | J13: 200,000.00 | K13: 0.00 | L13: 0.00 | M13: 300,000.00 | N13: 1,220,000.00 | O13: 0.0000 | P13: 500,000.0000 | Q13: 0.00 | R13: 0.00 | S13: 0.00
A14: 204 | B14: 02 | C14: 99 | D14: 其他公安支出 | E14: 90,000.00 | F14: 90,000.00 | G14: 50,000.00 | H14: 0.00 | I14: 0.00 | J14: 0.00 | K14: 0.00 | L14: 0.00 | M14: 20,000.00 | N14: 0.00 | O14: 0.0000 | P14: 20,000.0000 | Q14: 0.00 | R14: 0.00 | S14: 0.00

Sheet 一般-个人家庭
A2: 一般公共预算基本支出明细表-对个人和家庭的补助
A3: 单位名称:临湘市公安局汇总 | P3: 单位：元
A4: 功能科目 | D4: 科目名称 | E4: 总计 | F4: 离休费 | G4: 退休费 | H4: 退职(役)费 | I4: 抚恤金 | J4: 生活补助 | K4: 救济费 | L4: 医疗费 | M4: 助学金 | N4: 奖励金 | O4: 生产补贴 | P4: 其他对个人和家庭的补助
A5: 类 | B5: 款 | C5: 项
D6: 合计 | E6: 1,716,160.00 | F6: 0.00 | G6: 0.00 | H6: 0.00 | I6: 116,160.00 | J6: 0.00 | K6: 0.00 | L6: 0.00 | M6: 0.00 | N6: 0.00 | O6: 0.00 | P6: 1,600,000.00
B7: 02 | E7: 1,716,160.00 | F7: 0.00 | G7: 0.00 | H7: 0.00 | I7: 116,160.00 | J7: 0.00 | K7: 0.00 | L7: 0.00 | M7: 0.00 | N7: 0.00 | O7: 0.00 | P7: 1,600,000.00
A8: 204 | E8: 1,716,160.00 | F8: 0.00 | G8: 0.00 | H8: 0.00 | I8: 116,160.00 | J8: 0.00 | K8: 0.00 | L8: 0.00 | M8: 0.00 | N8: 0.00 | O8: 0.00 | P8: 1,600,000.00
A9: 204 | B9: 02 | C9: 01 | D9: 行政运行（公安） | E9: 1,716,160.00 | F9: 0.00 | G9: 0.00 | H9: 0.00 | I9: 116,160.00 | J9: 0.00 | K9: 0.00 | L9: 0.00 | M9: 0.00 | N9: 0.00 | O9: 0.00 | P9: 1,600,000.00

Sheet 一般-个人家庭（政府预算）
A2: 一般公共预算基本支出明细表-对个人和家庭的补助（政府预算）
A3: 单位名称:临湘市公安局汇总 | J3: 单位：元
A4: 功能科目 | D4: 科目名称 | E4: 总计 | F4: 社会福利和救济 | G4: 助学金 | H4: 个人农业生产补贴 | I4: 离退休 | J4: 其他对个人和家庭的补助
A5: 类 | B5: 款 | C5: 项
D6: 合计 | E6: 1,716,160.00 | F6: 116,160.00 | G6: 0.00 | H6: 0.00 | I6: 0.00 | J6: 1,600,000.00
B7: 02 | E7: 1,716,160.00 | F7: 116,160.00 | G7: 0.00 | H7: 0.00 | I7: 0.00 | J7: 1,600,000.00
A8: 204 | E8: 1,716,160.00 | F8: 116,160.00 | G8: 0.00 | H8: 0.00 | I8: 0.00 | J8: 1,600,000.00
A9: 204 | B9: 02 | C9: 01 | D9: 行政运行（公安） | E9: 1,716,160.00 | F9: 116,160.00 | G9: 0.00 | H9: 0.00 | I9: 0.00 | J9: 1,600,000.00

Sheet 基金
A2: 政府性基金预算支出情况表
A3: 单位名称:临湘市公安局汇总 | Q3: 单位：元
A4: 功能科目 | E4: 总计 | F4: 基本支出 | J4: 项目支出
A5: 科目编码 | D5: 科目名称 | F5: 合计 | G5: 工资福利支出 | H5: 一般商品和服务支出 | I5: 对个人和家庭的补助 | J5: 合计 | K5: 商品和服务支出 | L5: 对个人和家庭的补助支出 | M5: 基本建设 | N5: 其他资本性支出 | O5: 对企事业单位的补贴 | P5: 其他支出 | Q5: 债务利息及费用支出
A6: 类 | B6: 款 | C6: 项
D7: 无 | E7: 0.00 | F7: 0.00 | G7: 0.00 | H7: 0.00 | I7: 0.00 | J7: 0.00 | K7: 0.00 | L7: 0.00 | M7: 0.00 | N7: 0.00 | O7: 0.00 | P7: 0.00 | Q7: 0.00

Sheet 基金（政府预算）
A2: 政府性基金预算支出情况表(按政府预算经济分类)
A3: 单位名称:临湘市公安局汇总 | Q3: 单位：元
A4: 功能科目 | D4: 功能科目 | E4: 总计 | F4: 机关工资福利支出 | G4: 机关商品和服务支出 | H4: 机关资本性支出（一） | I4: 机关资本性支出（二） | J4: 对事业单位经常性补助 | K4: 对事业单位资本性补助 | L4: 对企业补助 | M4: 对企业资本性支出 | N4: 对个人和家庭的补助 | O4: 对社会保障基金补助 | P4: 债务利息及费用支出 | Q4: 其他支出
A5: 类 | B5: 款 | C5: 项
E7: 0.00 | F7: 0.00 | G7: 0.00 | H7: 0.00 | I7: 0.00 | J7: 0.00 | K7: 0.00 | L7: 0.00 | M7: 0.00 | N7: 0.00 | O7: 0.00 | P7: 0.00 | Q7: 0.00

Sheet 专户
A2: 纳入专户管理的非税收入预算拨款汇总表
A3: 单位名称:临湘市公安局汇总 | Q3: 单位：元
A4: 功能科目 | E4: 总计 | F4: 基本支出 | J4: 项目支出
A5: 科目编码 | D5: 科目名称 | F5: 合计 | G5: 工资福利支出 | H5: 一般商品和服务支出 | I5: 对个人和家庭的补助 | J5: 合计 | K5: 商品和服务支出 | L5: 对个人和家庭的补助支出 | M5: 基本建设 | N5: 其他资本性支出 | O5: 对企事业单位的补贴 | P5: 其他支出 | Q5: 债务利息及费用支出
A6: 类 | B6: 款 | C6: 项
D7: 合计 | E7: =E8+E11 -> 2200000 | F7: =F8+F11 -> 0 | G7: 0 | H7: 0 | I7: 0 | J7: 2200000 | K7: 2200000 | L7: 0 | M7: 0 | N7: 0 | O7: 0 | P7: 0 | Q7: 0
A8: 204 | E8: 1000000 | F8: 0 | G8: 0 | H8: 0 | I8: 0 | J8: 1000000 | K8: 1000000 | L8: 0 | M8: 0 | N8: 0 | O8: 0 | P8: 0 | Q8: 0
B9: 02 | E9: 1000000 | F9: 0 | G9: 0 | H9: 0 | I9: 0 | J9: 1000000 | K9: 1000000 | L9: 0 | M9: 0 | N9: 0 | O9: 0 | P9: 0 | Q9: 0
A10: 204 | B10: 02 | C10: 01 | D10: 行政运行（公安） | E10: 1000000 | F10: 0 | G10: 0 | H10: 0 | I10: 0 | J10: 1000000 | K10: 1000000 | L10: 0 | M10: 0 | N10: 0 | O10: 0 | P10: 0 | Q10: 0
A11: 204 | E11: 1200000 | F11: 0 | G11: 0 | H11: 0 | I11: 0 | J11: 1200000 | K11: 1200000 | L11: 0 | M11: 0 | N11: 0 | O11: 0 | P11: 0 | Q11: 0
B12: 02 | E12: 1200000 | F12: 0 | G12: 0 | H12: 0 | I12: 0 | J12: 1200000 | K12: 1200000 | L12: 0 | M12: 0 | N12: 0 | O12: 0 | P12: 0 | Q12: 0
A13: 204 | B13: 02 | C13: 01 | D13: 行政运行（公安） | E13: 1200000 | F13: 0 | G13: 0 | H13: 0 | I13: 0 | J13: 1200000 | K13: 1200000 | L13: 0 | M13: 0 | N13: 0 | O13: 0 | P13: 0 | Q13: 0

Sheet 专户（政府预算）
A2: 纳入专户管理的非税收入拨款预算分类汇总表(按政府预算经济分类)
A3: 单位名称:临湘市公安局汇总 | Q3: 单位：元
A4: 功能科目 | D4: 功能科目 | E4: 总计 | F4: 机关工资福利支出 | G4: 机关商品和服务支出 | H4: 机关资本性支出（一） | I4: 机关资本性支出（二） | J4: 对事业单位经常性补助 | K4: 对事业单位资本性补助 | L4: 对企业补助 | M4: 对企业资本性支出 | N4: 对个人和家庭的补助 | O4: 对社会保障基金补助 | P4: 债务利息及费用支出 | Q4: 其他支出
A5: 类 | B5: 款 | C5: 项
E7: =E8+E11 -> 2200000.00 | F7: =F8+F11 -> 0.00 | G7: 2200000.00 | H7: 0.00 | I7: 0.00 | J7: 0.00 | K7: 0.00 | L7: 0.00 | M7: 0.00 | N7: 0.00 | O7: 0.00 | P7: 0.00 | Q7: 0.00
A8: 204 | E8: 1000000.00 | F8: 0.00 | G8: 1000000.00 | H8: 0.00 | I8: 0.00 | J8: 0.00 | K8: 0.00 | L8: 0.00 | M8: 0.00 | N8: 0.00 | O8: 0.00 | P8: 0.00 | Q8: 0.00
A9: 204 | B9: 02 | E9: 1000000.00 | F9: 0.00 | G9: 1000000.00 | H9: 0.00 | I9: 0.00 | J9: 0.00 | K9: 0.00 | L9: 0.00 | M9: 0.00 | N9: 0.00 | O9: 0.00 | P9: 0.00 | Q9: 0.00
A10: 204 | B10: 02 | C10: 01 | D10: 行政运行（公安） | E10: 1000000.00 | F10: 0.00 | G10: 1000000.00 | H10: 0.00 | I10: 0.00 | J10: 0.00 | K10: 0.00 | L10: 0.00 | M10: 0.00 | N10: 0.00 | O10: 0.00 | P10: 0.00 | Q10: 0.00
A11: 204 | E11: 1200000.00 | F11: 0.00 | G11: 1200000.00 | H11: 0.00 | I11: 0.00 | J11: 0.00 | K11: 0.00 | L11: 0.00 | M11: 0.00 | N11: 0.00 | O11: 0.00 | P11: 0.00 | Q11: 0.00
A12: 204 | B12: 02 | E12: 1200000.00 | F12: 0.00 | G12: 1200000.00 | H12: 0.00 | I12: 0.00 | J12: 0.00 | K12: 0.00 | L12: 0.00 | M12: 0.00 | N12: 0.00 | O12: 0.00 | P12: 0.00 | Q12: 0.00
A13: 204 | B13: 02 | C13: 01 | D13: 行政运行（公安） | E13: 1200000.00 | F13: 0.00 | G13: 1200000.00 | H13: 0.00 | I13: 0.00 | J13: 0.00 | K13: 0.00 | L13: 0.00 | M13: 0.00 | N13: 0.00 | O13: 0.00 | P13: 0.00 | Q13: 0.00

Sheet 经费拨款
A2: 一般预算拨款-经费拨款
A3: 单位名称:临湘市公安局汇总 | Q3: 单位：元
A4: 功能科目 | E4: 总计 | F4: 基本支出 | J4: 项目支出
A5: 科目编码 | D5: 科目名称 | F5: 合计 | G5: 工资福利支出 | H5: 一般商品和服务支出 | I5: 对个人和家庭的补助 | J5: 合计 | K5: 商品和服务支出 | L5: 对个人和家庭的补助支出 | M5: 基本建设 | N5: 其他资本性支出 | O5: 对企事业单位的补贴 | P5: 其他支出 | Q5: 债务利息及费用支出
A6: 类 | B6: 款 | C6: 项
D7: 合计 | E7: =E8+E11+E14+E19+E20+E21+E22+E25 -> 66973246.8 | F7: =F8+F11+F14+F19+F20+F21+F22+F25 -> 55523246.8 | G7: 46428086.8 | H7: 8979000 | I7: 116160 | J7: 11450000 | K7: 9624000 | L7: 1600000 | M7: 65000 | N7: 15000 | O7: 0 | P7: 146000 | Q7: 0
A8: 204 | E8: 48439771.73 | F8: 38795771.73 | G8: 31425611.73 | H8: 7254000 | I8: 116160 | J8: 9644000 | K8: 8044000 | L8: 1600000 | M8: 0 | N8: 0 | O8: 0 | P8: 0 | Q8: 0
B9: 2 | E9: 48439771.73 | F9: 38795771.73 | G9: 31425611.73 | H9: 7254000 | I9: 116160 | J9: 9644000 | K9: 8044000 | L9: 1600000 | M9: 0 | N9: 0 | O9: 0 | P9: 0 | Q9: 0
A10: 204 | B10: 2 | C10: 1 | D10: 行政运行（公安） | E10: 48439771.73 | F10: 38795771.73 | G10: 31425611.73 | H10: 7254000 | I10: 116160 | J10: 9644000 | K10: 8044000 | L10: 1600000 | M10: 0 | N10: 0 | O10: 0 | P10: 0 | Q10: 0
A11: 208 | E11: 3329048.64 | F11: 3329048.64 | G11: 3329048.64 | H11: 0 | I11: 0 | J11: 0 | K11: 0 | L11: 0 | M11: 0 | N11: 0 | O11: 0 | P11: 0 | Q11: 0
B12: 5 | E12: 3329048.64 | F12: 3329048.64 | G12: 3329048.64 | H12: 0 | I12: 0 | J12: 0 | K12: 0 | L12: 0 | M12: 0 | N12: 0 | O12: 0 | P12: 0 | Q12: 0
A13: 208 | B13: 5 | C13: 5 | D13: 机关事业单位基本养老保险缴费支出 | E13: 3329048.64 | F13: 3329048.64 | G13: 3329048.64 | H13: 0 | I13: 0 | J13: 0 | K13: 0 | L13: 0 | M13: 0 | N13: 0 | O13: 0 | P13: 0 | Q13: 0
A14: 221 | E14: 2496786.48 | F14: 2496786.48 | G14: 2496786.48 | H14: 0 | I14: 0 | J14: 0 | K14: 0 | L14: 0 | M14: 0 | N14: 0 | O14: 0 | P14: 0 | Q14: 0
B15: 2 | E15: 2496786.48 | F15: 2496786.48 | G15: 2496786.48 | H15: 0 | I15: 0 | J15: 0 | K15: 0 | L15: 0 | M15: 0 | N15: 0 | O15: 0 | P15: 0 | Q15: 0
A16: 221 | B16: 2 | C16: 1 | D16: 住房公积金 | E16: 2496786.48 | F16: 2496786.48 | G16: 2496786.48 | H16: 0 | I16: 0 | J16: 0 | K16: 0 | L16: 0 | M16: 0 | N16: 0 | O16: 0 | P16: 0 | Q16: 0
A17: 204 | E17: 11153486.79 | F17: 9347486.79 | G17: 7622486.79 | H17: 1725000 | I17: 0 | J17: 1806000 | K17: 1580000 | L17: 0 | M17: 65000 | N17: 15000 | O17: 0 | P17: 146000 | Q17: 0
B18: 2 | E18: 11153486.79 | F18: 9347486.79 | G18: 7622486.79 | H18: 1725000 | I18: 0 | J18: 1806000 | K18: 1580000 | L18: 0 | M18: 65000 | N18: 15000 | O18: 0 | P18: 146000 | Q18: 0
A19: 204 | B19: 2 | C19: 1 | D19: 行政运行（公安） | E19: 1725000 | F19: 1725000 | G19: 0 | H19: 1725000 | I19: 0 | J19: 0 | K19: 0 | L19: 0 | M19: 0 | N19: 0 | O19: 0 | P19: 0 | Q19: 0
A20: 204 | B20: 2 | C20: 2 | D20: 一般行政管理事务（公安） | E20: 9258486.79 | F20: 7622486.79 | G20: 7622486.79 | H20: 0 | I20: 0 | J20: 1636000 | K20: 1490000 | L20: 0 | M20: 0 | N20: 0 | O20: 0 | P20: 146000 | Q20: 0
A21: 204 | B21: 2 | C21: 99 | D21: 其他公安支出 | E21: 170000 | F21: 0 | G21: 0 | H21: 0 | I21: 0 | J21: 170000 | K21: 90000 | L21: 0 | M21: 65000 | N21: 15000 | O21: 0 | P21: 0 | Q21: 0
A22: 208 | E22: 888087.52 | F22: 888087.52 | G22: 888087.52 | H22: 0 | I22: 0 | J22: 0 | K22: 0 | L22: 0 | M22: 0 | N22: 0 | O22: 0 | P22: 0 | Q22: 0
B23: 5 | E23: 888087.52 | F23: 888087.52 | G23: 888087.52 | H23: 0 | I23: 0 | J23: 0 | K23: 0 | L23: 0 | M23: 0 | N23: 0 | O23: 0 | P23: 0 | Q23: 0
A24: 208 | B24: 5 | C24: 5 | D24: 机关事业单位基本养老保险缴费支出 | E24: 888087.52 | F24: 888087.52 | G24: 888087.52 | H24: 0 | I24: 0 | J24: 0 | K24: 0 | L24: 0 | M24: 0 | N24: 0 | O24: 0 | P24: 0 | Q24: 0
A25: 221 | E25: 666065.64 | F25: 666065.64 | G25: 666065.64 | H25: 0 | I25: 0 | J25: 0 | K25: 0 | L25: 0 | M25: 0 | N25: 0 | O25: 0 | P25: 0 | Q25: 0
B26: 2 | E26: 666065.64 | F26: 666065.64 | G26: 666065.64 | H26: 0 | I26: 0 | J26: 0 | K26: 0 | L26: 0 | M26: 0 | N26: 0 | O26: 0 | P26: 0 | Q26: 0
A27: 221 | B27: 2 | C27: 1 | D27: 住房公积金 | E27: 666065.64 | F27: 666065.64 | G27: 666065.64 | H27: 0 | I27: 0 | J27: 0 | K27: 0 | L27: 0 | M27: 0 | N27: 0 | O27: 0 | P27: 0 | Q27: 0

Sheet 经费拨款（政府预算）
A2: 一般公共预算拨款--经费拨款预算表(按政府预算经济分类)
A3: 单位名称:临湘市公安局汇总 | Q3: 单位：元
A4: 功能科目 | D4: 功能科目 | E4: 总计 | F4: 机关工资福利支出 | G4: 机关商品和服务支出 | H4: 机关资本性支出（一） | I4: 机关资本性支出（二） | J4: 对事业单位经常性补助 | K4: 对事业单位资本性补助 | L4: 对企业补助 | M4: 对企业资本性支出 | N4: 对个人和家庭的补助 | O4: 对社会保障基金补助 | P4: 债务利息及费用支出 | Q4: 其他支出
A5: 类 | B5: 款 | C5: 项
D7: 合计 | E7: =E8+E11+E14+E17+E23+E25 -> 66973246.80 | F7: =F8+F11+F14+F17+F23+F25 -> 46428086.80 | G7: 18603000.00 | H7: 15000.00 | I7: 65000.00 | J7: 0.00 | K7: 0.00 | L7: 0.00 | M7: 0.00 | N7: 1716160.00 | O7: 0.00 | P7: 0.00 | Q7: 146000.00
A8: 204 | E8: 48439771.73 | F8: 31425611.73 | G8: 15298000.00 | H8: 0.00 | I8: 0.00 | J8: 0.00 | K8: 0.00 | L8: 0.00 | M8: 0.00 | N8: 1716160.00 | O8: 0.00 | P8: 0.00 | Q8: 0.00
B9: 02 | E9: 48439771.73 | F9: 31425611.73 | G9: 15298000.00 | H9: 0.00 | I9: 0.00 | J9: 0.00 | K9: 0.00 | L9: 0.00 | M9: 0.00 | N9: 1716160.00 | O9: 0.00 | P9: 0.00 | Q9: 0.00
A10: 204 | B10: 02 | C10: 01 | D10: 行政运行（公安） | E10: 48439771.73 | F10: 31425611.73 | G10: 15298000.00 | H10: 0.00 | I10: 0.00 | J10: 0.00 | K10: 0.00 | L10: 0.00 | M10: 0.00 | N10: 1716160.00 | O10: 0.00 | P10: 0.00 | Q10: 0.00
A11: 208 | E11: 3329048.64 | F11: 3329048.64 | G11: 0.00 | H11: 0.00 | I11: 0.00 | J11: 0.00 | K11: 0.00 | L11: 0.00 | M11: 0.00 | N11: 0.00 | O11: 0.00 | P11: 0.00 | Q11: 0.00
B12: 05 | E12: 3329048.64 | F12: 3329048.64 | G12: 0.00 | H12: 0.00 | I12: 0.00 | J12: 0.00 | K12: 0.00 | L12: 0.00 | M12: 0.00 | N12: 0.00 | O12: 0.00 | P12: 0.00 | Q12: 0.00
A13: 208 | B13: 05 | C13: 05 | D13: 机关事业单位基本养老保险缴费支出 | E13: 3329048.64 | F13: 3329048.64 | G13: 0.00 | H13: 0.00 | I13: 0.00 | J13: 0.00 | K13: 0.00 | L13: 0.00 | M13: 0.00 | N13: 0.00 | O13: 0.00 | P13: 0.00 | Q13: 0.00
A14: 221 | E14: 2496786.48 | F14: 2496786.48 | G14: 0.00 | H14: 0.00 | I14: 0.00 | J14: 0.00 | K14: 0.00 | L14: 0.00 | M14: 0.00 | N14: 0.00 | O14: 0.00 | P14: 0.00 | Q14: 0.00
B15: 02 | E15: 2496786.48 | F15: 2496786.48 | G15: 0.00 | H15: 0.00 | I15: 0.00 | J15: 0.00 | K15: 0.00 | L15: 0.00 | M15: 0.00 | N15: 0.00 | O15: 0.00 | P15: 0.00 | Q15: 0.00
A16: 221 | B16: 02 | C16: 01 | D16: 住房公积金 | E16: 2496786.48 | F16: 2496786.48 | G16: 0.00 | H16: 0.00 | I16: 0.00 | J16: 0.00 | K16: 0.00 | L16: 0.00 | M16: 0.00 | N16: 0.00 | O16: 0.00 | P16: 0.00 | Q16: 0.00
A17: 204 | E17: 11153486.79 | F17: 7622486.79 | G17: 3305000.00 | H17: 15000.00 | I17: 65000.00 | J17: 0.00 | K17: 0.00 | L17: 0.00 | M17: 0.00 | N17: 0.00 | O17: 0.00 | P17: 0.00 | Q17: 146000.00
B18: 02 | E18: 11153486.79 | F18: 7622486.79 | G18: 3305000.00 | H18: 15000.00 | I18: 65000.00 | J18: 0.00 | K18: 0.00 | L18: 0.00 | M18: 0.00 | N18: 0.00 | O18: 0.00 | P18: 0.00 | Q18: 146000.00
A19: 204 | B19: 02 | C19: 01 | D19: 行政运行（公安） | E19: 1725000.00 | F19: 0.00 | G19: 1725000.00 | H19: 0.00 | I19: 0.00 | J19: 0.00 | K19: 0.00 | L19: 0.00 | M19: 0.00 | N19: 0.00 | O19: 0.00 | P19: 0.00 | Q19: 0.00
A20: 204 | B20: 02 | C20: 02 | D20: 一般行政管理事务（公安） | E20: 9258486.79 | F20: 7622486.79 | G20: 1490000.00 | H20: 0.00 | I20: 0.00 | J20: 0.00 | K20: 0.00 | L20: 0.00 | M20: 0.00 | N20: 0.00 | O20: 0.00 | P20: 0.00 | Q20: 146000.00
A21: 204 | B21: 02 | C21: 99 | D21: 其他公安支出 | E21: 170000.00 | F21: 0.00 | G21: 90000.00 | H21: 15000.00 | I21: 65000.00 | J21: 0.00 | K21: 0.00 | L21: 0.00 | M21: 0.00 | N21: 0.00 | O21: 0.00 | P21: 0.00 | Q21: 0.00
A22: 208 | E22: 888087.52 | F22: 888087.52 | G22: 0.00 | H22: 0.00 | I22: 0.00 | J22: 0.00 | K22: 0.00 | L22: 0.00 | M22: 0.00 | N22: 0.00 | O22: 0.00 | P22: 0.00 | Q22: 0.00
B23: 05 | E23: 888087.52 | F23: 888087.52 | G23: 0.00 | H23: 0.00 | I23: 0.00 | J23: 0.00 | K23: 0.00 | L23: 0.00 | M23: 0.00 | N23: 0.00 | O23: 0.00 | P23: 0.00 | Q23: 0.00
A24: 208 | B24: 05 | C24: 05 | D24: 机关事业单位基本养老保险缴费支出 | E24: 888087.52 | F24: 888087.52 | G24: 0.00 | H24: 0.00 | I24: 0.00 | J24: 0.00 | K24: 0.00 | L24: 0.00 | M24: 0.00 | N24: 0.00 | O24: 0.00 | P24: 0.00 | Q24: 0.00
A25: 221 | E25: 666065.64 | F25: 666065.64 | G25: 0.00 | H25: 0.00 | I25: 0.00 | J25: 0.00 | K25: 0.00 | L25: 0.00 | M25: 0.00 | N25: 0.00 | O25: 0.00 | P25: 0.00 | Q25: 0.00
B26: 02 | E26: 666065.64 | F26: 666065.64 | G26: 0.00 | H26: 0.00 | I26: 0.00 | J26: 0.00 | K26: 0.00 | L26: 0.00 | M26: 0.00 | N26: 0.00 | O26: 0.00 | P26: 0.00 | Q26: 0.00
A27: 221 | B27: 02 | C27: 01 | D27: 住房公积金 | E27: 666065.64 | F27: 666065.64 | G27: 0.00 | H27: 0.00 | I27: 0.00 | J27: 0.00 | K27: 0.00 | L27: 0.00 | M27: 0.00 | N27: 0.00 | O27: 0.00 | P27: 0.00 | Q27: 0.00

Sheet 专项
A2: 专项资金预算汇总表
A3: 单位名称：临湘市公安局汇总 | I3: 单位：元
A4: 项目名称 | B4: 总计 | C4: 一般预算拨款 | E4: 纳入专户管理的非税收入拨款 | F4: 政府性基金拨款 | G4: 事业单位经营服务收入 | H4: 上级补助收入 | I4: 其他收入
C5: 经费拨款 | D5: 纳入预算管理的非税收入拨款
B6: 32050000.00 | C6: 11450000.00 | D6: 15600000.00 | E6: 2200000.00 | H6: 2800000.00
A7: 市委、政府保安及城区巡逻 | B7: 900000.00 | C7: 900000.00 | D7: 0.00 | E7: 0.00 | F7: 0.00 | G7: 0.00 | H7: 0.00 | I7: 0.00
A8: 看守所在押人员给养费 | B8: 910000.00 | C8: 910000.00 | D8: 0.00 | E8: 0.00 | F8: 0.00 | G8: 0.00 | H8: 0.00 | I8: 0.00
A9: 拘留所执行人员给养费 | B9: 150000.00 | C9: 150000.00 | D9: 0.00 | E9: 0.00 | F9: 0.00 | G9: 0.00 | H9: 0.00 | I9: 0.00
A10: “一标三实”信息集中采集工作经费 | B10: 100000.00 | C10: 100000.00 | D10: 0.00 | E10: 0.00 | F10: 0.00 | G10: 0.00 | H10: 0.00 | I10: 0.00
A11: 平安城市系统维护 | B11: 1500000.00 | C11: 1500000.00 | D11: 0.00 | E11: 0.00 | F11: 0.00 | G11: 0.00 | H11: 0.00 | I11: 0.00
A12: 辅协警经费 | B12: 6384000.00 | C12: 4084000.00 | D12: 0.00 | E12: 0.00 | F12: 0.00 | G12: 0.00 | H12: 2300000.00 | I12: 0.00
A13: 扫黑除恶专项经费 | B13: 500000.00 | C13: 500000.00 | D13: 0.00 | E13: 0.00 | F13: 0.00 | G13: 0.00 | H13: 0.00 | I13: 0.00
A14: 禁毒及重症病人收治 | B14: 1500000.00 | C14: 1500000.00 | D14: 0.00 | E14: 0.00 | F14: 0.00 | G14: 0.00 | H14: 0.00 | I14: 0.00
A15: 公安业务办案和专项工作经费 | B15: 11600000.00 | C15: 0.00 | D15: 10600000.00 | E15: 1000000.00 | F15: 0.00 | G15: 0.00 | H15: 0.00 | I15: 0.00
A16: 办案费 | B16: 5000000.00 | C16: 0.00 | D16: 5000000.00 | E16: 0.00 | F16: 0.00 | G16: 0.00 | H16: 0.00 | I16: 0.00
A17: 交通电子警察维护及交通标识标牌维护 | B17: 170000.00 | C17: 170000.00 | D17: 0.00 | E17: 0.00 | F17: 0.00 | G17: 0.00 | H17: 0.00 | I17: 0.00
A18: 交通协管员 | B18: 2136000.00 | C18: 1636000.00 | D18: 0.00 | E18: 0.00 | F18: 0.00 | G18: 0.00 | H18: 500000.00 | I18: 0.00
A19: 牌证工本费 | B19: 1200000.00 | C19: 0.00 | D19: 0.00 | E19: 1200000.00 | F19: 0.00 | G19: 0.00 | H19: 0.00 | I19: 0.00

Sheet 三公
A1: 一般公共预算“三公”经费预算表
A2: 单位名称:临湘市公安局汇总 | G2: 单位：元
A3: 单位名称 | B3: 三公经费预算数(一般公共预算拨款)
B4: 小计 | C4: 公务接待费 | D4: 公务用车购置及运行费 | E4: 其中： | G4: 因公出国(境)费用
E5: 公务用车购置费 | F5: 公务用车运行维护费
A6: 合计 | B6: =B7+B9 -> 3375000.00 | C6: 470000.00 | D6: 2905000.00 | E6: 1200000.00 | F6: 1705000.00 | G6: 0.00
B7: 2820000.00 | C7: 300000.00 | D7: 2520000.00 | E7: 1200000.00 | F7: 1320000.00 | G7: 0.00
A8: 临湘市公安局机关 | B8: 2820000.00 | C8: 300000.00 | D8: 2520000.00 | E8: 1200000.00 | F8: 1320000.00 | G8: 0.00
B9: 555000.00 | C9: 170000.00 | D9: 385000.00 | E9: 0.00 | F9: 385000.00 | G9: 0.00
A10: 临湘市公安局交通警察大队机关 | B10: 555000.00 | C10: 170000.00 | D10: 385000.00 | E10: 0.00 | F10: 385000.00 | G10: 0.00

Sheet 绩效目标整体申报
A1: 整体支出绩效目标申报表
A2: 单位名称:临湘市公安局汇总 | V2: 单位：万元
A3: 单位编码 | B3: 单位名称 | C3: 预算绩效管理联络员 | D3: 联系电话 | E3: 人员编制数 | F3: 实有人数 | G3: 单位职能 | H3: 单位年度收入预算（万元） | M3: 单位年度支出预算（万元） | T3: 部门整体支出年度绩效目标 | U3: 其他说明的问题 | V3: 财政部门审核意见
H4: 收入合计 | I4: 公共财政拨款 | J4: 政府性基金拨款 | K4: 非税收入拨款 | L4: 其他拨款 | M4: 支出合计 | N4: 基本支出 | O4: 项目支出 | P4: 其中三公经费预算（万元） | Q4: 公务用车运行和购置费 | R4: 公务接待费 | S4: 因公出国（境）费
A5: ** | B5: ** | C5: ** | D5: ** | E5: 1 | F5: 2 | G5: 3 | H5: 4 | I5: 5 | J5: 6 | K5: 7 | L5: 8 | M5: 9 | N5: 10 | O5: 11 | P5: 12 | Q5: 13 | R5: 14 | S5: 15 | T5: 16 | U5: 17 | V5: 18
A6: 117001 | B6: 临湘市公安局机关 | C6: 陆文娟 | D6: 3739838 | E6: 290 | F6: 285 | G6: 预防、制止和侦查违法犯罪活动。 | H6: 6,816.56 | I6: 5,426.56 | J6: 0.00 | K6: 1,160.00 | L6: 230.00 | M6: 6,816.56 | N6: 4,462.16 | O6: 2,354.40 | P6: 282.00 | Q6: 252.00 | R6: 30.00 | S6: 0.00 | T6: 预防、制止和侦查违法犯罪活动,确保社会大局稳定，人民生命、财产安全。
A7: 118001 | B7: 临湘市公安局交通警察大队机关 | C7: 李伟 | D7: 3178116 | E7: 69 | F7: 69 | G7: 道路交通秩序维护 ，车辆、驾驶人管理。 | H7: 1,940.76 | I7: 1,270.76 | J7: 0.00 | K7: 620.00 | L7: 50.00 | M7: 1,940.76 | N7: 1,090.16 | O7: 850.60 | P7: 55.50 | Q7: 38.50 | R7: 17.00 | S7: 0.00 | T7: 加强道路安全的宣传教育，确保交通道路的畅通;热情服务群众，要求满意率达85%以上;加大电子科技的投入，确保各项指数的完成。 | U7: 无

Sheet 项目绩效目标申报表
A2: 项 目 绩 效 目 标 申 报 表
A4: 单位编码 | B4: 单位名称 | C4: 主管部门 | D4: 项目起止时间 | E4: 项目属性 | F4: 项目类型 | G4: 项目负责人 | H4: 联系电话 | I4: 项目概况 | J4: 项目立项依据 | K4: 项目资金情况 | V4: 单位已有（或拟定）保证项目实施的制度与措施 | W4: 绩效目标 | AZ4: 其他说明的问题 | BA4: 财政部门审核意见
K5: 项目资金申请 | S5: 支出明细预算 | W5: 长期目标 | X5: 年度目标 | Y5: 产出指标 | AK5: 效益指标
K6: 市级资金 | M6: 省级资金 | O6: 中央资金 | Q6: 自有资金 | S6: 上年度安排资金 | T6: 本年度申请资金 | U6: 测算依据及说明 | Y6: 数量指标 | AB6: 质量指标 | AE6: 时效指标 | AH6: 成本指标 | AK6: 经济效益指标 | AN6: 社会效益指标 | AQ6: 生态效益指标 | AT6: 可持续指标 | AW6: 社会公众或服务对象满意度
K7: 上年度安排资金（市级） | L7: 本年度申请资金（市级） | M7: 上年度安排资金（省级） | N7: 本年度申请资金（省级） | O7: 上年度安排资金（中央） | P7: 本年度申请资金（中央） | Q7: 上年度安排资金（自有） | R7: 本年度申请资金（自有） | Y7: 指标内容（数量） | Z7: 指标值（数量） | AA7: 备注（数量） | AB7: 指标内容（质量） | AC7: 指标值（质量） | AD7: 备注（质量） | AE7: 指标内容（时效） | AF7: 指标值（时效） | AG7: 备注（时效） | AH7: 指标内容（成本） | AI7: 指标值（成本） | AJ7: 备注（成本） | AK7: 指标内容（经济） | AL7: 指标值（经济） | AM7: 备注（经济） | AN7: 指标内容（社会） | AO7: 指标值（社会） | AP7: 备注（社会） | AQ7: 指标内容（生态） | AR7: 指标值（生态） | AS7: 备注（生态） | AT7: 指标内容（可持续） | AU7: 指标值（可持续） | AV7: 备注（可持续） | AW7: 指标内容 | AX7: 指标值 | AY7: 备注
A9: ** | B9: ** | C9: ** | D9: ** | E9: ** | F9: ** | G9: ** | H9: ** | I9: ** | J9: ** | K9: 1 | L9: 2 | M9: 3 | N9: 4 | O9: 5 | P9: 6 | Q9: 7 | R9: 8 | S9: 9 | T9: 10 | U9: 11 | V9: 12 | W9: 13 | X9: 14 | Y9: 15 | Z9: 16 | AA9: 17 | AB9: 18 | AC9: 19 | AD9: 20 | AE9: 21 | AF9: 22 | AG9: 23 | AH9: 24 | AI9: 25 | AJ9: 26 | AK9: 27 | AL9: 28 | AM9: 29 | AN9: 30 | AO9: 31 | AP9: 32 | AQ9: 33 | AR9: 34 | AS9: 35 | AT9: 36 | AU9: 37 | AV9: 38 | AW9: 39 | AX9: 40 | AY9: 41
B10: 合计 | K10: 3,363.00 | L10: 3,113.00 | M10: 50.00 | N10: 50.00 | S10: 3,413.00 | T10: 3,163.00
A11: 117001 | B11: 临湘市公安局机关 | C11: 行政政法股 | D11: 2020年1月至12月 | E11: 延续项目 | F11: 其他专项类 | G11: 刘木清 | H11: 3739878 | I11: 266名辅协警人员经费 | J11: 市长办公会议纪要[2013]第3次、湘办发[2013]20号，266名*2.4万元/每年 | K11: 638.40 | L11: 638.40 | M11: 0.00 | N11: 0.00 | O11: 0.00 | P11: 0.00 | Q11: 0.00 | R11: 0.00 | S11: 638.40 | T11: 638.40 | U11: 266名人平每年2.4万元 | V11: 成立专门机构、资金管理办法、项目管理办法、工作措施等。 | W11: 为辅协警协助民警维护社会治安、打击违法犯罪、服务人民群众方面提供经济保障。 | X11: 大力缓解了公安机关警力严重不足，切实加强了社会治安管控，维护了全市治安大局稳定。 | Y11: 严格按预算执行 | Z11: 638.40 | AA11: 638.4 | AB11: 取得较好成效。 | AC11: 工作运转正常 | AD11: 社会治安大局稳定。 | AE11: 按时间节点完成 | AF11: 638.4 | AG11: 638.4 | AH11: 266名辅协警人员经费。 | AI11: 638.4 | AJ11: 638.4 | AK11: 各类案件发案率较往年有所下降 | AL11: ≧90% | AM11: ≧90% | AN11: 维护了全市治安大局稳定，人民群众安居乐业。 | AO11: 90%的满意率 | AP11: 90%的满意率 | AQ11: 维护了全市治安大局稳定，人民群众安居乐业。 | AR11: ≧90% | AS11: ≧90% | AT11: 各项案件发案率较往年有所下降 | AU11: ≧80% | AV11: ≧80% | AW11: 各项案件发案率较往年有所下降 | AX11: 满意度达到90以上。 | AY11: 满意度达到90以上。 | AZ11: 无
A12: 117001 | B12: 临湘市公安局机关 | C12: 行政政法股 | D12: 2020年1月至12月 | E12: 延续项目 | F12: 其他专项类 | G12: 徐楚辉 | H12: 3739866 | I12: 平安城市视频监控系统运行、维护费用。 | J12: 业务工作需要。 | K12: 150.00 | L12: 150.00 | M12: 0.00 | N12: 0.00 | O12: 0.00 | P12: 0.00 | Q12: 0.00 | R12: 0.00 | S12: 150.00 | T12: 150.00 | U12: 业务工作需要 | V12: 成立专门机构、资金管理办法、项目管理办法、工作措施等。 | W12: 为公共安全、治安、交通等方面发挥重要作用。 | X12: 为改善我市治安状况，突发事件的应急处理能力和已发案件的侦破提供实时和历史信息 | Y12: 严格按预算执行 | Z12: 150.00 | AA12: 150 | AB12: 取得较好成效。 | AC12: 100% | AD12: 厉行节约、弃分发挥资金效益。 | AE12: 按时间节点完成 | AF12: 150 | AG12: 150 | AH12: 平安城市视频监控系统运行、维护费用。 | AI12: 150 | AJ12: 150 | AK12: 为侦破案件提供技术支撑 | AL12: ≧90% | AM12: ≧90% | AN12: 为改善我市治安状况，突发事件的应急处理能力和已发案件的侦破提供实时和历史信息。 | AO12: ≧90% | AP12: ≧90% | AQ12: 为改善我市治安状况，突发事件的应急处理能力和已发案件的侦破提供实时和历史信息。 | AR12: ≧90% | AS12: ≧90% | AT12: 为侦破案件提供技术支撑 | AU12: ≧90% | AV12: ≧90% | AW12: 为侦破案件提供技术支撑 | AX12: ≧90% | AY12: ≧90% | AZ12: 无
A13: 117001 | B13: 临湘市公安局机关 | C13: 行政政法股 | D13: 2020.1月至12月 | E13: 延续项目 | F13: 其他专项类 | G13: 刘木清 | H13: 3739878 | I13: 2020年完成罚没收入2300万元，按50%安排单位支出。 | J13: 公安业务工作需要。 | K13: 1,250.00 | L13: 1,160.00 | M13: 0.00 | N13: 0.00 | O13: 0.00 | P13: 0.00 | Q13: 0.00 | R13: 0.00 | S13: 1,250.00 | T13: 1,160.00 | U13: 2020年纳入预算管理的非税收入 | V13: 成立专门机构、资金管理办法、项目管理办法、工作措施等。 | W13: 该项目本年度应完成的任务，确保社会治安稳定 | X13: 执法水平提高,人民群众满意度大力提升 | Y13: 严格按预算执行 | Z13: 1,160.00 | AA13: 1160 | AB13: 取得较好成效。 | AC13: 100% | AD13: 厉行节约、弃分发挥资金效益。 | AE13: 按时间节点完成 | AF13: 1160 | AG13: 1160 | AH13: 执法水平提高,人民群众满意度大力提升。 | AI13: 1160 | AJ13: 1160 | AK13: 执法水平提高,人民群众满意度大力提升 | AL13: ≧90% | AM13: ≧90% | AN13: 人民群众满意度大力提升 | AO13: ≧90% | AP13: ≧90% | AQ13: 人民群众满意度大力提高 | AR13: ≧90% | AS13: ≧90% | AT13: 执法水平提高,人民群众满意度大力提升 | AU13: ≧90% | AV13: ≧90% | AW13: 执法水平提高,人民群众满意度大力提升。 | AX13: ≧90% | AY13: ≧90% | AZ13: 无
A14: 117001 | B14: 临湘市公安局机关 | C14: 行政政法股 | D14: 2020年1月至12月 | E14: 延续项目 | F14: 其他专项类 | G14: 李海雄 | H14: 3739803 | I14: 严厉打击黑恶势力犯罪活动，维护全市社会治安持续稳定。 | J14: 中共中央、国务院《关于开展扫黑除恶专项斗争的通知》、公安部《关于贯彻落实（中共中央、国务院关于开展扫黑除恶专项斗争的通知）的意见》，按照临湘市委、市政府、市委政法委的部署要求。 | K14: 50.00 | L14: 50.00 | M14: 0.00 | N14: 0.00 | O14: 0.00 | P14: 0.00 | Q14: 0.00 | R14: 0.00 | S14: 50.00 | T14: 50.00 | U14: 业务工作需要 | V14: 成立专门机构、资金管理办法、项目管理办法、工作措施等 | W14: 通过扫黑除恶专项斗争，黑恶热力违法犯罪特别是农村涉黑涉恶问题得到根本遏制，涉黑涉恶治安乱点得到全面整治，人民群众安全感、满意度明显提升。 | X14: 通过扫黑除恶专项斗争，黑恶热力违法犯罪特别是农村涉黑涉恶问题得到根本遏制，涉黑涉恶治安乱点得到全面整治，人民群众安全感、满意度明显提升。 | Y14: 严格按预算执行 | Z14: 50.00 | AA14: 50 | AB14: 取得较好成效。 | AC14: 101% | AD14: 厉行节约、弃分发挥资金效益。 | AE14: 按时间节点完成 | AF14: 50 | AG14: 50 | AH14: 严厉打击黑恶势力犯罪活动，维护全市社会治安持续稳定。 | AI14: 50 | AJ14: 50 | AK14: 涉黑涉恶治安乱点得到全面整治。 | AL14: ≧90% | AM14: ≧90% | AN14: 涉黑涉恶治安乱点得到全面整治，人民群众安全感、满意度明显提升。 | AO14: ≧90% | AP14: ≧90% | AQ14: 涉黑涉恶治安乱点得到全面整治，人民群众安全感、满意度明显提升。 | AR14: ≧90% | AS14: ≧90% | AT14: 涉黑涉恶治安乱点得到全面整治。 | AU14: ≧90% | AV14: ≧90% | AW14: 涉黑涉恶治安乱点得到全面整治。 | AX14: ≧90% | AY14: ≧90% | AZ14: 无
A15: 117001 | B15: 临湘市公安局机关 | C15: 行政政法股 | D15: 2020.1-2020.12 | E15: 延续项目 | F15: 其他专项类 | G15: 李实 | H15: 3722668 | I15: 城区巡逻、防控 | J15: 市长办公会议 | K15: 90.00 | L15: 90.00 | M15: 0.00 | N15: 0.00 | O15: 0.00 | P15: 0.00 | Q15: 0.00 | R15: 0.00 | S15: 90.00 | T15: 90.00 | U15: 业务工作需要 | V15: 成立专门机构、资金管理办法、项目管理办法、工作措施等 | W15: 城区巡逻、防控开支 | X15: 确保重点单位安全和谐稳定。 | Y15: 严格按预算执行 | Z15: 90.00 | AA15: 90 | AB15: 取得较好成效。 | AC15: 102% | AD15: 厉行节约、弃分发挥资金效益。 | AE15: 按时间节点完成 | AF15: 90 | AG15: 90 | AH15: 城区巡逻、防控 | AI15: 90 | AJ15: 90 | AK15: 重点单位安全和谐稳定。 | AL15: ≧90% | AM15: ≧90% | AN15: 重点单位安全和谐稳定。 | AO15: ≧90% | AP15: ≧90% | AQ15: 重点单位安全和谐稳定。 | AR15: ≧90% | AS15: ≧90% | AT15: 重点单位安全和谐稳定。 | AU15: ≧90% | AV15: ≧90% | AW15: 重点单位安全和谐稳定。 | AX15: ≧90% | AY15: ≧90% | AZ15: 无
A16: 117001 | B16: 临湘市公安局机关 | C16: 行政政法股 | D16: 2020年1月至12月 | E16: 延续项目 | F16: 其他专项类 | G16: 方淼 | H16: 3739855 | I16: 看守所羁押人员生活费和体检费。 | J16: 湘财行[2013]70号文件 | K16: 91.00 | L16: 91.00 | M16: 0.00 | N16: 0.00 | O16: 0.00 | P16: 0.00 | Q16: 0.00 | R16: 0.00 | S16: 91.00 | T16: 91.00 | U16: 业务工作需要 | V16: 成立专门机构、资金管理办法、项目管理办法、工作措施等。 | W16: 该项目本年度应完成的任务目标。确保看守所在押人员生活和健康保障。 | X16: 该项目本年度应完成的任务目标。确保看守所在押人员生活和健康保障。 | Y16: 严格按预算执行 | Z16: 91.00 | AA16: 91 | AB16: 取得较好成效。 | AC16: 103% | AD16: 厉行节约、弃分发挥资金效益。 | AE16: 按时间节点完成 | AF16: 91 | AG16: 91 | AH16: 看守所羁押人员生活费和体检费。 | AI16: 91 | AJ16: 91 | AK16: 保障看守所在押人员生活和健康保障。 | AL16: ≧60% | AM16: ≧60% | AN16: 保障看守所在押人员生活和健康保障。 | AO16: ≧90% | AP16: ≧90% | AQ16: 保障看守所在押人员生活和健康保障。 | AR16: ≧90% | AS16: ≧90% | AT16: 保障看守所在押人员生活和健康保障。 | AU16: ≧90% | AV16: ≧90% | AW16: 保障看守所在押人员生活和健康保障。 | AX16: ≧90% | AY16: ≧90% | AZ16: 无
A17: 117001 | B17: 临湘市公安局机关 | C17: 行政政法股 | D17: 2020年1月至12月 | E17: 延续项目 | F17: 其他专项类 | G17: 吴曙光 | H17: 3739819 | I17: 开展禁毒知识宣传、打击涉毒违法犯罪及涉毒重症病人收治费用。 | J17: 湘政督函[2011]41号、市长办公会议纪要[2017]第19次及相关法律、法规 | K17: 200.00 | L17: 150.00 | M17: 0.00 | N17: 0.00 | O17: 0.00 | P17: 0.00 | Q17: 0.00 | R17: 0.00 | S17: 200.00 | T17: 150.00 | U17: 业务工作需要 | V17: 成立专门机构、资金管理办法、项目管理办法、工作措施等 | W17: 该项目整体应完成的任务目标，开展禁毒知识宣传，确保吸毒人员和重症病人正常生活。 | X17: 该项目整体应完成的任务目标，开展禁毒知识宣传，确保吸毒人员和重症病人正常生活。 | Y17: 严格按预算执行 | Z17: 150.00 | AA17: 150 | AB17: 取得较好成效。 | AC17: 104% | AD17: 厉行节约、弃分发挥资金效益。 | AE17: 按时间节点完成 | AF17: 150 | AG17: 150 | AH17: 开展禁毒知识宣传、打击涉毒违法犯罪及涉毒重症病人收治费用。 | AI17: 150 | AJ17: 150 | AK17: 开展禁毒知识宣传，吸毒人员较往年有所下降。 | AL17: ≧90% | AM17: ≧90% | AN17: 开展禁毒知识宣传，吸毒人员较往年有所下降。 | AO17: ≧90% | AP17: ≧90% | AQ17: 开展禁毒知识宣传，吸毒人员较往年有所下降。 | AR17: ≧90% | AS17: ≧90% | AT17: 开展禁毒知识宣传，吸毒人员较往年有所下降。 | AU17: ≧90% | AV17: ≧90% | AW17: 开展禁毒知识宣传，吸毒人员较往年有所下降。 | AX17: ≧90% | AY17: ≧90% | AZ17: 无
A18: 118001 | B18: 临湘市公安局交通警察大队机关 | C18: 行政政法股 | D18: 2020.1.1-2020.12.31 | E18: 新增项目 | F18: 其他专项类 | G18: 李胜兵 | H18: 15115013777 | I18: 纳入非税专户管理的牌证工本费收入用于支付牌证购买工本费 | K18: 0.00 | L18: 120.00 | M18: 0.00 | N18: 0.00 | O18: 0.00 | P18: 0.00 | Q18: 0.00 | R18: 0.00 | S18: 0.00 | T18: 120.00 | U18: 2019年所办业务的估算数 | V18: 所收牌证工本费上缴非税国库，纳入专户管后专款专用 | W18: 贯彻落实公安部“放、管、服”工作要求，让利便民于群众，牌证工本费专项收缴及使用。 | X18: 全年上牌率及办证率较去年提高10% | Y18: 120万的工本费收入 | Z18: 120 | AA18: 120 | AB18: 办事群众对上牌及办证流程及工作效率 | AC18: 100% | AD18: 100% | AE18: 2020年底完成 | AF18: 10万/月 | AG18: 10万/月 | AH18: 牌证工本费用 | AI18: 70元/牌,10-15元/证 | AJ18: 70元/牌,10-15元/证 | AK18: 全市所有车辆上牌率及驾驶员办证率 | AL18: ≧90% | AM18: ≧90% | AN18: 群众对车驾业务办理认可度 | AO18: ≧90% | AP18: ≧90% | AQ18: 群众对车驾业务办理认可度 | AR18: ≧90% | AS18: ≧90% | AT18: 实现车驾业务办理简易多元化,网上申办率 | AU18: ≧60% | AV18: ≧60% | AW18: 车驾业务方便快捷,群众普遍满意 | AX18: ≧90% | AY18: ≧90% | AZ18: 无
A19: 118001 | B19: 临湘市公安局交通警察大队机关 | C19: 行政政法股 | D19: 2020.1.1-2020.12.31 | E19: 延续项目 | F19: 其他专项类 | G19: 李胜兵 | H19: 15115013777 | I19: 纳入政府预算的非税收入返回用以弥补民警办案经费的不足及财政未纳入供养的41名协警的工资待遇及办案经费 | K19: 850.00 | L19: 500.00 | M19: 0.00 | N19: 0.00 | O19: 0.00 | P19: 0.00 | Q19: 0.00 | R19: 0.00 | S19: 850.00 | T19: 500.00 | U19: 2020年纳入预算管理的非税收入 | V19: 纳入预算管理的非税罚没收入收支分开 | W19: 单位行政运行正常，民警待遇保障到位，民警凝聚力加强，执法办案成本保证充分。 | X19: 单位行政运行正常，民警待遇保障到位，民警凝聚力加强，执法办案成本保证充分，执法办案水平得到提高，提高交管部门执法公信力。 | Y19: 2020年全年办案经费 | Z19: 500万/年 | AA19: 500万/年 | AB19: 执法水平提高,人民群众满意度大大提高 | AC19: 100% | AD19: 100% | AE19: 截止2020年年底 | AF19: 每月≈41.6万 | AG19: 每月≈41.6万 | AH19: 189名民、协警的办案经费 | AI19: 2.6万/人 | AJ19: 2.6万/人 | AK19: 重大逃逸事侦破率 | AL19: ≧90% | AM19: ≧90% | AN19: 群众对交通管理工作认可度 | AO19: ≧90% | AP19: ≧90% | AQ19: 廉正执法，群众满意 | AR19: ≧90% | AS19: ≧90% | AT19: 高效办案重大案件侦破率 | AU19: ≧100% | AV19: ≧100% | AW19: 人民群众信赖度 | AX19: ≧90% | AY19: ≧90% | AZ19: 无
A20: 118001 | B20: 临湘市公安局交通警察大队机关 | C20: 行政政法股 | D20: 2020.1.1-2020.12.30 | E20: 延续项目 | F20: 其他专项类 | G20: 李胜兵 | H20: 15115013777 | I20: 交通协管员工资 | J20: 2014年第66次市长办公会议 | K20: 43.60 | L20: 163.60 | M20: 50.00 | N20: 50.00 | O20: 0.00 | P20: 0.00 | Q20: 0.00 | R20: 0.00 | S20: 93.60 | T20: 213.60 | U20: 39人*3万-0.6万*39+40人*3万 | V20: 所有协管员的招录由大队办公室负责办理，统一与劳务派遣公司签订劳务合同，由劳务派遣公发放基本工资及四险的缴纳，用人单位发放岗位津贴及加班工资。 | W20: 警力配置合理，充分发挥协管员的协管职能，道路通行畅通有序。 | X20: 警力配置合理，充分发挥协管员的协管职能，道路通行畅通有序，加强道路巡逻管控力，有效遏制交通事故的发生。 | Y20: 协管员的配置数 | Z20: 79人 | AA20: 39*(3万-0.6)+40*3万 | AB20: 警力充分，配置合理 | AC20: 工作运转正常 | AD20: 道路交通管理畅通有序 | AE20: 协警的辞职与聘用及时跟上 | AF20: 79人/月 | AG20: 79人/月 | AH20: 协警的人员工资 | AI20: 2.7万/人 | AJ20: 2.7万/人 | AK20: 道路秩序拥堵情况下降 | AL20: ≧60% | AM20: ≧60% | AN20: 警力配置合理,交通秩序良好,人民群众出行基本畅通 | AO20: 90%的满意率 | AP20: 90%的满意率 | AQ20: 全市道路畅群众出行满意 | AR20: ≧80% | AS20: ≧80% | AT20: 道路畅通，路面见警力提高 | AU20: ≧80% | AV20: ≧80% | AW20: 人民群众对交通环境及秩序的普遍认可 | AX20: 90%的满意率 | AY20: ≧90% | AZ20: 无

Sheet 5-政府采购预算表的复制
O1: 录入05表
A2: 2020年部门预算政府采购预算表
O3: 单位：元
A4: 单位编码 | B4: 单位名称 | C4: 类别 | D4: 采购项目 | E4: 采购品目 | F4: 采购数量 | G4: 计量单位 | H4: 总计 | I4: 经费拨款 | J4: 纳入预算管理的非税收入 | K4: 纳入专户管理的非税收入 | L4: 政府性基金 | M4: 上级补助收入 | N4: 其他收入 | O4: 提前下达
B6: 合计 | F6: =F7+F20 -> 331 | G6: 0 | H6: 9,770,000.00 | I6: 0 | J6: 9,770,000.00 | K6: 0 | L6: 0 | M6: 0 | O6: 0.00
B7: 临湘市公安局机关 | F7: 20 | H7: 7,770,000.00 | I7: 0.00 | J7: 7,770,000.00 | K7: 0.00 | L7: 0.00 | M7: 0.00 | N7: 0.00 | O7: 0.00
A8: 117001 | B8: 临湘市公安局机关 | C8: 工程类 | D8: 公安业务办案和专项工作经费 | E8: 房屋修缮 | F8: 0 | H8: 800,000.00 | I8: 0.00 | J8: 800,000.00 | K8: 0.00 | L8: 0.00 | M8: 0.00 | N8: 0.00 | O8: 0.00
A9: 117001 | B9: 临湘市公安局机关 | C9: 货物类 | D9: 公安业务办案和专项工作经费 | E9: 专用设备 | F9: 1 | H9: 600,000.00 | I9: 0.00 | J9: 600,000.00 | K9: 0.00 | L9: 0.00 | M9: 0.00 | N9: 0.00 | O9: 0.00
A10: 117001 | B10: 临湘市公安局机关 | C10: 货物类 | D10: 公安业务办案和专项工作经费 | E10: 车辆 | F10: 10 | H10: 1,200,000.00 | I10: 0.00 | J10: 1,200,000.00 | K10: 0.00 | L10: 0.00 | M10: 0.00 | N10: 0.00 | O10: 0.00
A11: 117001 | B11: 临湘市公安局机关 | C11: 货物类 | D11: 公安业务办案和专项工作经费 | E11: 专用设备 | F11: 1 | H11: 50,000.00 | I11: 0.00 | J11: 50,000.00 | K11: 0.00 | L11: 0.00 | M11: 0.00 | N11: 0.00 | O11: 0.00
A12: 117001 | B12: 临湘市公安局机关 | C12: 货物类 | D12: 公安业务办案和专项工作经费 | E12: 专用设备 | F12: 2 | H12: 600,000.00 | I12: 0.00 | J12: 600,000.00 | K12: 0.00 | L12: 0.00 | M12: 0.00 | N12: 0.00 | O12: 0.00
A13: 117001 | B13: 临湘市公安局机关 | C13: 货物类 | D13: 公安业务办案和专项工作经费 | E13: 专用设备 | F13: 1 | H13: 70,000.00 | I13: 0.00 | J13: 70,000.00 | K13: 0.00 | L13: 0.00 | M13: 0.00 | N13: 0.00 | O13: 0.00
A14: 117001 | B14: 临湘市公安局机关 | C14: 货物类 | D14: 公安业务办案和专项工作经费 | E14: 专用设备 | F14: 1 | H14: 350,000.00 | I14: 0.00 | J14: 350,000.00 | K14: 0.00 | L14: 0.00 | M14: 0.00 | N14: 0.00 | O14: 0.00
A15: 117001 | B15: 临湘市公安局机关 | C15: 货物类 | D15: 公安业务办案和专项工作经费 | E15: 专用设备 | F15: 1 | H15: 1,000,000.00 | I15: 0.00 | J15: 1,000,000.00 | K15: 0.00 | L15: 0.00 | M15: 0.00 | N15: 0.00 | O15: 0.00
A16: 117001 | B16: 临湘市公安局机关 | C16: 货物类 | D16: 公安业务办案和专项工作经费 | E16: 专用设备 | F16: 1 | H16: 300,000.00 | I16: 0.00 | J16: 300,000.00 | K16: 0.00 | L16: 0.00 | M16: 0.00 | N16: 0.00 | O16: 0.00
A17: 117001 | B17: 临湘市公安局机关 | C17: 货物类 | D17: 公安业务办案和专项工作经费 | E17: 专用设备 | F17: 1 | H17: 800,000.00 | I17: 0.00 | J17: 800,000.00 | K17: 0.00 | L17: 0.00 | M17: 0.00 | N17: 0.00 | O17: 0.00
A18: 117001 | B18: 临湘市公安局机关 | C18: 货物类 | D18: 公安业务办案和专项工作经费 | E18: 办公设备 | F18: 0 | H18: 200,000.00 | I18: 0.00 | J18: 200,000.00 | K18: 0.00 | L18: 0.00 | M18: 0.00 | N18: 0.00 | O18: 0.00
A19: 117001 | B19: 临湘市公安局机关 | C19: 货物类 | D19: 公安业务办案和专项工作经费 | E19: 专用设备 | F19: 1 | H19: 1,800,000.00 | I19: 0.00 | J19: 1,800,000.00 | K19: 0.00 | L19: 0.00 | M19: 0.00 | N19: 0.00 | O19: 0.00
B20: 临湘市公安局交通警察大队机关 | F20: 311 | H20: 2,000,000.00 | I20: 0.00 | J20: 2,000,000.00 | K20: 0.00 | L20: 0.00 | M20: 0.00 | N20: 0.00 | O20: 0.00
A21: 118001 | B21: 临湘市公安局交通警察大队机关 | C21: 工程类 | D21: 办案费 | E21: 修缮工程 | F21: 0 | H21: 600,000.00 | I21: 0.00 | J21: 600,000.00 | K21: 0.00 | L21: 0.00 | M21: 0.00 | N21: 0.00 | O21: 0.00
A22: 118001 | B22: 临湘市公安局交通警察大队机关 | C22: 工程类 | D22: 办案费 | E22: 监控系统工程安装 | F22: 0 | H22: 300,000.00 | I22: 0.00 | J22: 300,000.00 | K22: 0.00 | L22: 0.00 | M22: 0.00 | N22: 0.00 | O22: 0.00
A23: 118001 | B23: 临湘市公安局交通警察大队机关 | C23: 货物类 | D23: 办案费 | E23: 交通管理设备 | F23: 6 | G23: 台 | H23: 180,000.00 | I23: 0.00 | J23: 180,000.00 | K23: 0.00 | L23: 0.00 | M23: 0.00 | N23: 0.00 | O23: 0.00
A24: 118001 | B24: 临湘市公安局交通警察大队机关 | C24: 货物类 | D24: 办案费 | E24: 家具用具 | F24: 10 | G24: 套 | H24: 100,000.00 | I24: 0.00 | J24: 100,000.00 | K24: 0.00 | L24: 0.00 | M24: 0.00 | N24: 0.00 | O24: 0.00
A25: 118001 | B25: 临湘市公安局交通警察大队机关 | C25: 货物类 | D25: 办案费 | E25: 警械设备 | F25: 10 | G25: 套 | H25: 20,000.00 | I25: 0.00 | J25: 20,000.00 | K25: 0.00 | L25: 0.00 | M25: 0.00 | N25: 0.00 | O25: 0.00
A26: 118001 | B26: 临湘市公安局交通警察大队机关 | C26: 货物类 | D26: 办案费 | E26: 便携式计算机 | F26: 5 | G26: 台 | H26: 40,000.00 | I26: 0.00 | J26: 40,000.00 | K26: 0.00 | L26: 0.00 | M26: 0.00 | N26: 0.00 | O26: 0.00
A27: 118001 | B27: 临湘市公安局交通警察大队机关 | C27: 货物类 | D27: 办案费 | E27: 被服装具 | F27: 200 | G27: 套 | H27: 400,000.00 | I27: 0.00 | J27: 400,000.00 | K27: 0.00 | L27: 0.00 | M27: 0.00 | N27: 0.00 | O27: 0.00
A28: 118001 | B28: 临湘市公安局交通警察大队机关 | C28: 货物类 | D28: 办案费 | E28: 物证检验鉴定设备 | F28: 20 | G28: 套 | H28: 100,000.00 | I28: 0.00 | J28: 100,000.00 | K28: 0.00 | L28: 0.00 | M28: 0.00 | N28: 0.00 | O28: 0.00
A29: 118001 | B29: 临湘市公安局交通警察大队机关 | C29: 货物类 | D29: 办案费 | E29: 激光打印机 | F29: 20 | G29: 台 | H29: 60,000.00 | I29: 0.00 | J29: 60,000.00 | K29: 0.00 | L29: 0.00 | M29: 0.00 | N29: 0.00 | O29: 0.00
A30: 118001 | B30: 临湘市公安局交通警察大队机关 | C30: 货物类 | D30: 办案费 | E30: 小型计算机 | F30: 40 | G30: 台 | H30: 200,000.00 | I30: 0.00 | J30: 200,000.00 | K30: 0.00 | L30: 0.00 | M30: 0.00 | N30: 0.00 | O30: 0.00

Sheet 绩效目标-附表
A1: 绩效目标申报表-附表
E2: 单位：万元
A3: 单位名称 | B3: 项目名称 | C3: 预算人数及其他 | D3: 标准或依据 | E3: 金额(万元)
A4: 临湘市公安局机关 | B4: 公安经费 | C4: 551 | E4: 6,816.56
A5: 临湘市公安局交通警察大队机关 | B5: 交通电子警察维护 | C5: 全市电子警察卡口的维护 | D5: 0.53万元/个 | E5: 17.00
A6: 临湘市公安局交通警察大队机关 | B6: 交通协管员 | C6: 79 | D6: （3万-0.6万）/人 | E6: 213.60
A7: 临湘市公安局交通警察大队机关 | B7: 一般商品和服务支出 | C7: 69 | E7: 172.50
A8: 临湘市公安局交通警察大队机关 | B8: 工资福利支出 | C8: 69 | E8: 762.26
A9: 临湘市公安局交通警察大队机关 | B9: 牌证工本费 | C9: 3000人及4000台次车 | D9: 去年办理业务推算 | E9: 120.00
A10: 临湘市公安局交通警察大队机关 | B10: 办案费 | C10: 190人 | D10: 2.6万/人 | E10: 500.00
A11: 临湘市公安局交通警察大队机关 | B11: 机关养老保险 | C11: 69 | E11: 88.80
A12: 临湘市公安局交通警察大队机关 | B12: 住房公积金 | C12: 69 | E12: 66.60
A13: 合计 | E13: =SUM(E4:E12) -> 8757.32
